{"text_format":"1","workbook":"xlsx","n_sheets":2,"sheets":["VAV Schedule","Instructions"],"not_rendered":{"charts":0,"images":0,"macros":1,"external_links":0,"defined_names":0,"comments":0,"pivot_tables":0},"unopened":[],"bounds":{"document_bytes":16777216,"sheet_cells":100000,"rows_first":2000,"rows_last":500,"rows_between":2000,"halvings":0,"cell_chars":16384,"cell_head_chars":4096},"cells_cut":0,"cells_raw":0,"read":"whole","date_system":"1900"}

{"sheet":"VAV Schedule","index":0,"n_rows":811,"n_cols":16384,"rows_kept":811,"cut":false,"hidden":false,"merged":[[2,1,2,4],[0,0,0,13],[6,6,6,7],[6,1,6,4],[9,0,9,3],[9,4,9,13],[7,1,7,4],[3,9,3,11],[3,6,3,7],[4,6,4,7],[5,6,5,7],[5,1,5,4],[4,1,4,4],[3,1,3,4]]}
["VAV Selection Scheduler - Excel Input Template",null,null,null,null,null,null,null,null,null,null,null,null,null,null,null,null,null,null,null,null,null,null,null,null,null,null,null,null,null,null,null,null,null,null,null,null,null,null,null,null,null,null,null,null,null,null,null,null,null,null,null,null,null,null,null,null,null,null,null,null,null,null,null,null,null,null,null,null,null,null,null,null,null,null,null,null,null,null,null,null,null,null,null,null,null,null,null,null,null,null,null,null,null,null,null,null,null,null,null,null,null,null,null,null,null,null,null,null,null,null,null,null,null,null,null,null,null,null,null,null,null,null,null,null,null,null,null,null,null,null,null,null,null,null,null,null,null,null,null,null,null,null,null,null,null,null,null,null,null,null,null,null,null,null,null,null,null,null,null,null,null,null,null,null,null,null,null,null,null,null,null,null,null,null,null,null,null,null,null,null,null,null,null,null,null,null,null,null,null,null,null,null,null,null,null,null,null,null,null,null,null,null,null,null,null,null,null,null,null,null,null,null,null,null,null,null,null,null,null,null,null,null,null,null,null,null,null,null,null,null,null,null,null,null,null,null,null,null,null,null,null,null,null,null,null,null,null,null,null,null,null,null,null,null,null,null,null,null,null,null,null,null,null,null,null,null,null,null,null,null,null,null,null,null,null,null,null,null,null,null,null,null,null,null,null,null,null,null,null,null,null,null,null,null,null,null,null,null,null,null,null,null,null,null,null,null,null,null,null,null,null,null,null,null,null,null,null,null,null,null,null,null,null,null,null,null,null,null,null,null,null,null,null,null,null,null,null,null,null,null,null,null,null,null,null,null,null,null,null,null,null,null,null,null,null,null,null,null,null,null,null,null,null,null,null,null,null,null,null,null,null,null,null,null,null,null,null,null,null,null,null,null,null,null,null,null,null,null,null,null,null,null,null,null,null,null,null,null,null,null,null,null,null,null,null,null,null,null,null,null,null,null,null,null,null,null,null,null,null,null,null,null,null,null,null,null,null,null,null,null,null,null,null,null,null,null,null,null,null,null,null,null,null,null,null,null,null,null,null,null,null,null,null,null,null,null,null,null,null,null,null,null,null,null,null,null,null,null,null,null,null,null,null,null,null,null,null,null,null,null,null,null,null,null,null,null,null,null,null,null,null,null,null,null,null,null,null,null,null,null,null,null,null,null,null,null,null,null,null,null,null,null,null,null,null,null,null,null,null,null,null,null,null,null,null,null,null,null,null,null,null,null,null,null,null,null,null,null,null,null,null,null,null,null,null,null,null,null,null,null,null,null,null,null,null,null,null,null,null,null,null,null,null,null,null,null,null,null,null,null,null,null,null,null,null,null,null,null,null,null,null,null,null,null,null,null,null,null,null,null,null,null,null,null,null,null,null,null,null,null,null,null,null,null,null,null,null,null,null,null,null,null,null,null,null,null,null,null,null,null,null,null,null,null,null,null,null,null,null,null,null,null,null,null,null,null,null,null,null,null,null,null,null,null,null,null,null,null,null,null,null,null,null,null,null,null,null,null,null,null,null,null,null,null,null,null,null,null,null,null,null,null,null,null,null,null,null,null,null,null,null,null,null,null,null,null,null,null,null,null,null,null,null,null,null,null,null,null,null,null,null,null,null,null,null,null,null,null,null,null,null,null,null,null,null,null,null,null,null,null,null,null,null,null,null,null,null,null,null,null,null,null,null,null,null,null,null,null,null,null,null,null,null,null,null,null,null,null,null,null,null,null,null,null,null,null,null,null,null,null,null,null,null,null,null,null,null,null,null,null,null,null,null,null,null,null,null,null,null,null,null,null,null,null,null,null,null,null,null,null,null,null,null,null,null,null,null,null,null,null,null,null,null,null,null,null,null,null,null,null,null,null,null,null,null,null,null,null,null,null,null,null,null,null,null,null,null,null,null,null,null,null,null,null,null,null,null,null,null,null,null,null,null,null,null,null,null,null,null,null,null,null,null,null,null,null,null,null,null,null,null,null,null,null,null,null,null,null,null,null,null,null,null,null,null,null,null,null,null,null,null,null,null,null,null,null,null,null,null,null,null,null,null,null,null,null,null,null,null,null,null,null,null,null,null,null,null,null,null,null,null,null,null,null,null,null,null,null,null,null,null,null,null,null,null,null,null,null,null,null,null,null,null,null,null,null,null,null,null,null,null,null,null,null,null,null,null,null,null,null,null,null,null,null,null,null,null,null,null,null,null,null,null,null,null,null,null,null,null,null,null,null,null,null,null,null,null,null,null,null,null,null,null,null,null,null,null,null,null,null,null,null,null,null,null,null,null,null,null,null,null,null,null,null,null,null,null,null,null,null,null,null,null,null,null,null,null,null,null,null,null,null,null,null,null,null,null,null,null,null,null,null,null,null,null,null,null,null,null,null,null,null,null,null,null,null,null,null,null,null,null,null,null,null,null,null,null,null,null,null,null,null,null,null,null,null,null,null,null,null,null,null,null,null,null,null,null,null,null,null,null,null,null,null,null,null,null,null,null,null,null,null,null,null,null,null,null,null,null,null,null,null,null,null,null,null,null,null,null,null,null,null,null,null,null,null,null,null,null,null,null,null,null,null,null,null,null,null,null,null,null,null,null,null,null,null,null,null,null,null,null,null,null,null,null,null,null,null,null,null,null,null,null,null,null,null,null,null,null,null,null,null,null,null,null,null,null,null,null,null,null,null,null,null,null,null,null,null,null,null,null,null,null,null,null,null,null,null,null,null,null,null,null,null,null,null,null,null,null,null,null,null,null,null,null,null,null,null,null,null,null,null,null,null,null,null,null,null,null,null,null,null,null,null,null,null,null,null,null,null,null,null,null,null,null,null,null,null,null,null,null,null,null,null,null,null,null,null,null,null,null,null,null,null,null,null,null,null,null,null,null,null,null,null,null,null,null,null,null,null,null,null,null,null,null,null,null,null,null,null,null,null,null,null,null,null,null,null,null,null,null,null,null,null,null,null,null,null,null,null,null,null,null,null,null,null,null,null,null,null,null,null,null,null,null,null,null,null,null,null,null,null,null,null,null,null,null,null,null,null,null,null,null,null,null,null,null,null,null,null,null,null,null,null,null,null,null,null,null,null,null,null,null,null,null,null,null,null,null,null,null,null,null,null,null,null,null,null,null,null,null,null,null,null,null,null,null,null,null,null,null,null,null,null,null,null,null,null,null,null,null,null,null,null,null,null,null,null,null,null,null,null,null,null,null,null,null,null,null,null,null,null,null,null,null,null,null,null,null,null,null,null,null,null,null,null,null,null,null,null,null,null,null,null,null,null,null,null,null,null,null,null,null,null,null,null,null,null,null,null,null,null,null,null,null,null,null,null,null,null,null,null,null,null,null,null,null,null,null,null,null,null,null,null,null,null,null,null,null,null,null,null,null,null,null,null,null,null,null,null,null,null,null,null,null,null,null,null,null,null,null,null,null,null,null,null,null,null,null,null,null,null,null,null,null,null,null,null,null,null,null,null,null,null,null,null,null,null,null,null,null,null,null,null,null,null,null,null,null,null,null,null,null,null,null,null,null,null,null,null,null,null,null,null,null,null,null,null,null,null,null,null,null,null,null,null,null,null,null,null,null,null,null,null,null,null,null,null,null,null,null,null,null,null,null,null,null,null,null,null,null,null,null,null,null,null,null,null,null,null,null,null,null,null,null,null,null,null,null,null,null,null,null,null,null,null,null,null,null,null,null,null,null,null,null,null,null,null,null,null,null,null,null,null,null,null,null,null,null,null,null,null,null,null,null,null,null,null,null,null,null,null,null,null,null,null,null,null,null,null,null,null,null,null,null,null,null,null,null,null,null,null,null,null,null,null,null,null,null,null,null,null,null,null,null,null,null,null,null,null,null,null,null,null,null,null,null,null,null,null,null,null,null,null,null,null,null,null,null,null,null,null,null,null,null,null,null,null,null,null,null,null,null,null,null,null,null,null,null,null,null,null,null,null,null,null,null,null,null,null,null,null,null,null,null,null,null,null,null,null,null,null,null,null,null,null,null,null,null,null,null,null,null,null,null,null,null,null,null,null,null,null,null,null,null,null,null,null,null,null,null,null,null,null,null,null,null,null,null,null,null,null,null,null,null,null,null,null,null,null,null,null,null,null,null,null,null,null,null,null,null,null,null,null,null,null,null,null,null,null,null,null,null,null,null,null,null,null,null,null,null,null,null,null,null,null,null,null,null,null,null,null,null,null,null,null,null,null,null,null,null,null,null,null,null,null,null,null,null,null,null,null,null,null,null,null,null,null,null,null,null,null,null,null,null,null,null,null,null,null,null,null,null,null,null,null,null,null,null,null,null,null,null,null,null,null,null,null,null,null,null,null,null,null,null,null,null,null,null,null,null,null,null,null,null,null,null,null,null,null,null,null,null,null,null,null,null,null,null,null,null,null,null,null,null,null,null,null,null,null,null,null,null,null,null,null,null,null,null,null,null,null,null,null,null,null,null,null,null,null,null,null,null,null,null,null,null,null,null,null,null,null,null,null,null,null,null,null,null,null,null,null,null,null,null,null,null,null,null,null,null,null,null,null,null,null,null,null,null,null,null,null,null,null,null,null,null,null,null,null,null,null,null,null,null,null,null,null,null,null,null,null,null,null,null,null,null,null,null,null,null,null,null,null,null,null,null,null,null,null,null,null,null,null,null,null,null,null,null,null,null,null,null,null,null,null,null,null,null,null,null,null,null,null,null,null,null,null,null,null,null,null,null,null,null,null,null,null,null,null,null,null,null,null,null,null,null,null,null,null,null,null,null,null,null,null,null,null,null,null,null,null,null,null,null,null,null,null,null,null,null,null,null,null,null,null,null,null,null,null,null,null,null,null,null,null,null,null,null,null,null,null,null,null,null,null,null,null,null,null,null,null,null,null,null,null,null,null,null,null,null,null,null,null,null,null,null,null,null,null,null,null,null,null,null,null,null,null,null,null,null,null,null,null,null,null,null,null,null,null,null,null,null,null,null,null,null,null,null,null,null,null,null,null,null,null,null,null,null,null,null,null,null,null,null,null,null,null,null,null,null,null,null,null,null,null,null,null,null,null,null,null,null,null,null,null,null,null,null,null,null,null,null,null,null,null,null,null,null,null,null,null,null,null,null,null,null,null,null,null,null,null,null,null,null,null,null,null,null,null,null,null,null,null,null,null,null,null,null,null,null,null,null,null,null,null,null,null,null,null,null,null,null,null,null,null,null,null,null,null,null,null,null,null,null,null,null,null,null,null,null,null,null,null,null,null,null,null,null,null,null,null,null,null,null,null,null,null,null,null,null,null,null,null,null,null,null,null,null,null,null,null,null,null,null,null,null,null,null,null,null,null,null,null,null,null,null,null,null,null,null,null,null,null,null,null,null,null,null,null,null,null,null,null,null,null,null,null,null,null,null,null,null,null,null,null,null,null,null,null,null,null,null,null,null,null,null,null,null,null,null,null,null,null,null,null,null,null,null,null,null,null,null,null,null,null,null,null,null,null,null,null,null,null,null,null,null,null,null,null,null,null,null,null,null,null,null,null,null,null,null,null,null,null,null,null,null,null,null,null,null,null,null,null,null,null,null,null,null,null,null,null,null,null,null,null,null,null,null,null,null,null,null,null,null,null,null,null,null,null,null,null,null,null,null,null,null,null,null,null,null,null,null,null,null,null,null,null,null,null,null,null,null,null,null,null,null,null,null,null,null,null,null,null,null,null,null,null,null,null,null,null,null,null,null,null,null,null,null,null,null,null,null,null,null,null,null,null,null,null,null,null,null,null,null,null,null,null,null,null,null,null,null,null,null,null,null,null,null,null,null,null,null,null,null,null,null,null,null,null,null,null,null,null,null,null,null,null,null,null,null,null,null,null,null,null,null,null,null,null,null,null,null,null,null,null,null,null,null,null,null,null,null,null,null,null,null,null,null,null,null,null,null,null,null,null,null,null,null,null,null,null,null,null,null,null,null,null,null,null,null,null,null,null,null,null,null,null,null,null,null,null,null,null,null,null,null,null,null,null,null,null,null,null,null,null,null,null,null,null,null,null,null,null,null,null,null,null,null,null,null,null,null,null,null,null,null,null,null,null,null,null,null,null,null,null,null,null,null,null,null,null,null,null,null,null,null,null,null,null,null,null,null,null,null,null,null,null,null,null,null,null,null,null,null,null,null,null,null,null,null,null,null,null,null,null,null,null,null,null,null,null,null,null,null,null,null,null,null,null,null,null,null,null,null,null,null,null,null,null,null,null,null,null,null,null,null,null,null,null,null,null,null,null,null,null,null,null,null,null,null,null,null,null,null,null,null,null,null,null,null,null,null,null,null,null,null,null,null,null,null,null,null,null,null,null,null,null,null,null,null,null,null,null,null,null,null,null,null,null,null,null,null,null,null,null,null,null,null,null,null,null,null,null,null,null,null,null,null,null,null,null,null,null,null,null,null,null,null,null,null,null,null,null,null,null,null,null,null,null,null,null,null,null,null,null,null,null,null,null,null,null,null,null,null,null,null,null,null,null,null,null,null,null,null,null,null,null,null,null,null,null,null,null,null,null,null,null,null,null,null,null,null,null,null,null,null,null,null,null,null,null,null,null,null,null,null,null,null,null,null,null,null,null,null,null,null,null,null,null,null,null,null,null,null,null,null,null,null,null,null,null,null,null,null,null,null,null,null,null,null,null,null,null,null,null,null,null,null,null,null,null,null,null,null,null,null,null,null,null,null,null,null,null,null,null,null,null,null,null,null,null,null,null,null,null,null,null,null,null,null,null,null,null,null,null,null,null,null,null,null,null,null,null,null,null,null,null,null,null,null,null,null,null,null,null,null,null,null,null,null,null,null,null,null,null,null,null,null,null,null,null,null,null,null,null,null,null,null,null,null,null,null,null,null,null,null,null,null,null,null,null,null,null,null,null,null,null,null,null,null,null,null,null,null,null,null,null,null,null,null,null,null,null,null,null,null,null,null,null,null,null,null,null,null,null,null,null,null,null,null,null,null,null,null,null,null,null,null,null,null,null,null,null,null,null,null,null,null,null,null,null,null,null,null,null,null,null,null,null,null,null,null,null,null,null,null,null,null,null,null,null,null,null,null,null,null,null,null,null,null,null,null,null,null,null,null,null,null,null,null,null,null,null,null,null,null,null,null,null,null,null,null,null,null,null,null,null,null,null,null,null,null,null,null,null,null,null,null,null,null,null,null,null,null,null,null,null,null,null,null,null,null,null,null,null,null,null,null,null,null,null,null,null,null,null,null,null,null,null,null,null,null,null,null,null,null,null,null,null,null,null,null,null,null,null,null,null,null,null,null,null,null,null,null,null,null,null,null,null,null,null,null,null,null,null,null,null,null,null,null,null,null,null,null,null,null,null,null,null,null,null,null,null,null,null,null,null,null,null,null,null,null,null,null,null,null,null,null,null,null,null,null,null,null,null,null,null,null,null,null,null,null,null,null,null,null,null,null,null,null,null,null,null,null,null,null,null,null,null,null,null,null,null,null,null,null,null,null,null,null,null,null,null,null,null,null,null,null,null,null,null,null,null,null,null,null,null,null,null,null,null,null,null,null,null,null,null,null,null,null,null,null,null,null,null,null,null,null,null,null,null,null,null,null,null,null,null,null,null,null,null,null,null,null,null,null,null,null,null,null,null,null,null,null,null,null,null,null,null,null,null,null,null,null,null,null,null,null,null,null,null,null,null,null,null,null,null,null,null,null,null,null,null,null,null,null,null,null,null,null,null,null,null,null,null,null,null,null,null,null,null,null,null,null,null,null,null,null,null,null,null,null,null,null,null,null,null,null,null,null,null,null,null,null,null,null,null,null,null,null,null,null,null,null,null,null,null,null,null,null,null,null,null,null,null,null,null,null,null,null,null,null,null,null,null,null,null,null,null,null,null,null,null,null,null,null,null,null,null,null,null,null,null,null,null,null,null,null,null,null,null,null,null,null,null,null,null,null,null,null,null,null,null,null,null,null,null,null,null,null,null,null,null,null,null,null,null,null,null,null,null,null,null,null,null,null,null,null,null,null,null,null,null,null,null,null,null,null,null,null,null,null,null,null,null,null,null,null,null,null,null,null,null,null,null,null,null,null,null,null,null,null,null,null,null,null,null,null,null,null,null,null,null,null,null,null,null,null,null,null,null,null,null,null,null,null,null,null,null,null,null,null,null,null,null,null,null,null,null,null,null,null,null,null,null,null,null,null,null,null,null,null,null,null,null,null,null,null,null,null,null,null,null,null,null,null,null,null,null,null,null,null,null,null,null,null,null,null,null,null,null,null,null,null,null,null,null,null,null,null,null,null,null,null,null,null,null,null,null,null,null,null,null,null,null,null,null,null,null,null,null,null,null,null,null,null,null,null,null,null,null,null,null,null,null,null,null,null,null,null,null,null,null,null,null,null,null,null,null,null,null,null,null,null,null,null,null,null,null,null,null,null,null,null,null,null,null,null,null,null,null,null,null,null,null,null,null,null,null,null,null,null,null,null,null,null,null,null,null,null,null,null,null,null,null,null,null,null,null,null,null,null,null,null,null,null,null,null,null,null,null,null,null,null,null,null,null,null,null,null,null,null,null,null,null,null,null,null,null,null,null,null,null,null,null,null,null,null,null,null,null,null,null,null,null,null,null,null,null,null,null,null,null,null,null,null,null,null,null,null,null,null,null,null,null,null,null,null,null,null,null,null,null,null,null,null,null,null,null,null,null,null,null,null,null,null,null,null,null,null,null,null,null,null,null,null,null,null,null,null,null,null,null,null,null,null,null,null,null,null,null,null,null,null,null,null,null,null,null,null,null,null,null,null,null,null,null,null,null,null,null,null,null,null,null,null,null,null,null,null,null,null,null,null,null,null,null,null,null,null,null,null,null,null,null,null,null,null,null,null,null,null,null,null,null,null,null,null,null,null,null,null,null,null,null,null,null,null,null,null,null,null,null,null,null,null,null,null,null,null,null,null,null,null,null,null,null,null,null,null,null,null,null,null,null,null,null,null,null,null,null,null,null,null,null,null,null,null,null,null,null,null,null,null,null,null,null,null,null,null,null,null,null,null,null,null,null,null,null,null,null,null,null,null,null,null,null,null,null,null,null,null,null,null,null,null,null,null,null,null,null,null,null,null,null,null,null,null,null,null,null,null,null,null,null,null,null,null,null,null,null,null,null,null,null,null,null,null,null,null,null,null,null,null,null,null,null,null,null,null,null,null,null,null,null,null,null,null,null,null,null,null,null,null,null,null,null,null,null,null,null,null,null,null,null,null,null,null,null,null,null,null,null,null,null,null,null,null,null,null,null,null,null,null,null,null,null,null,null,null,null,null,null,null,null,null,null,null,null,null,null,null,null,null,null,null,null,null,null,null,null,null,null,null,null,null,null,null,null,null,null,null,null,null,null,null,null,null,null,null,null,null,null,null,null,null,null,null,null,null,null,null,null,null,null,null,null,null,null,null,null,null,null,null,null,null,null,null,null,null,null,null,null,null,null,null,null,null,null,null,null,null,null,null,null,null,null,null,null,null,null,null,null,null,null,null,null,null,null,null,null,null,null,null,null,null,null,null,null,null,null,null,null,null,null,null,null,null,null,null,null,null,null,null,null,null,null,null,null,null,null,null,null,null,null,null,null,null,null,null,null,null,null,null,null,null,null,null,null,null,null,null,null,null,null,null,null,null,null,null,null,null,null,null,null,null,null,null,null,null,null,null,null,null,null,null,null,null,null,null,null,null,null,null,null,null,null,null,null,null,null,null,null,null,null,null,null,null,null,null,null,null,null,null,null,null,null,null,null,null,null,null,null,null,null,null,null,null,null,null,null,null,null,null,null,null,null,null,null,null,null,null,null,null,null,null,null,null,null,null,null,null,null,null,null,null,null,null,null,null,null,null,null,null,null,null,null,null,null,null,null,null,null,null,null,null,null,null,null,null,null,null,null,null,null,null,null,null,null,null,null,null,null,null,null,null,null,null,null,null,null,null,null,null,null,null,null,null,null,null,null,null,null,null,null,null,null,null,null,null,null,null,null,null,null,null,null,null,null,null,null,null,null,null,null,null,null,null,null,null,null,null,null,null,null,null,null,null,null,null,null,null,null,null,null,null,null,null,null,null,null,null,null,null,null,null,null,null,null,null,null,null,null,null,null,null,null,null,null,null,null,null,null,null,null,null,null,null,null,null,null,null,null,null,null,null,null,null,null,null,null,null,null,null,null,null,null,null,null,null,null,null,null,null,null,null,null,null,null,null,null,null,null,null,null,null,null,null,null,null,null,null,null,null,null,null,null,null,null,null,null,null,null,null,null,null,null,null,null,null,null,null,null,null,null,null,null,null,null,null,null,null,null,null,null,null,null,null,null,null,null,null,null,null,null,null,null,null,null,null,null,null,null,null,null,null,null,null,null,null,null,null,null,null,null,null,null,null,null,null,null,null,null,null,null,null,null,null,null,null,null,null,null,null,null,null,null,null,null,null,null,null,null,null,null,null,null,null,null,null,null,null,null,null,null,null,null,null,null,null,null,null,null,null,null,null,null,null,null,null,null,null,null,null,null,null,null,null,null,null,null,null,null,null,null,null,null,null,null,null,null,null,null,null,null,null,null,null,null,null,null,null,null,null,null,null,null,null,null,null,null,null,null,null,null,null,null,null,null,null,null,null,null,null,null,null,null,null,null,null,null,null,null,null,null,null,null,null,null,null,null,null,null,null,null,null,null,null,null,null,null,null,null,null,null,null,null,null,null,null,null,null,null,null,null,null,null,null,null,null,null,null,null,null,null,null,null,null,null,null,null,null,null,null,null,null,null,null,null,null,null,null,null,null,null,null,null,null,null,null,null,null,null,null,null,null,null,null,null,null,null,null,null,null,null,null,null,null,null,null,null,null,null,null,null,null,null,null,null,null,null,null,null,null,null,null,null,null,null,null,null,null,null,null,null,null,null,null,null,null,null,null,null,null,null,null,null,null,null,null,null,null,null,null,null,null,null,null,null,null,null,null,null,null,null,null,null,null,null,null,null,null,null,null,null,null,null,null,null,null,null,null,null,null,null,null,null,null,null,null,null,null,null,null,null,null,null,null,null,null,null,null,null,null,null,null,null,null,null,null,null,null,null,null,null,null,null,null,null,null,null,null,null,null,null,null,null,null,null,null,null,null,null,null,null,null,null,null,null,null,null,null,null,null,null,null,null,null,null,null,null,null,null,null,null,null,null,null,null,null,null,null,null,null,null,null,null,null,null,null,null,null,null,null,null,null,null,null,null,null,null,null,null,null,null,null,null,null,null,null,null,null,null,null,null,null,null,null,null,null,null,null,null,null,null,null,null,null,null,null,null,null,null,null,null,null,null,null,null,null,null,null,null,null,null,null,null,null,null,null,null,null,null,null,null,null,null,null,null,null,null,null,null,null,null,null,null,null,null,null,null,null,null,null,null,null,null,null,null,null,null,null,null,null,null,null,null,null,null,null,null,null,null,null,null,null,null,null,null,null,null,null,null,null,null,null,null,null,null,null,null,null,null,null,null,null,null,null,null,null,null,null,null,null,null,null,null,null,null,null,null,null,null,null,null,null,null,null,null,null,null,null,null,null,null,null,null,null,null,null,null,null,null,null,null,null,null,null,null,null,null,null,null,null,null,null,null,null,null,null,null,null,null,null,null,null,null,null,null,null,null,null,null,null,null,null,null,null,null,null,null,null,null,null,null,null,null,null,null,null,null,null,null,null,null,null,null,null,null,null,null,null,null,null,null,null,null,null,null,null,null,null,null,null,null,null,null,null,null,null,null,null,null,null,null,null,null,null,null,null,null,null,null,null,null,null,null,null,null,null,null,null,null,null,null,null,null,null,null,null,null,null,null,null,null,null,null,null,null,null,null,null,null,null,null,null,null,null,null,null,null,null,null,null,null,null,null,null,null,null,null,null,null,null,null,null,null,null,null,null,null,null,null,null,null,null,null,null,null,null,null,null,null,null,null,null,null,null,null,null,null,null,null,null,null,null,null,null,null,null,null,null,null,null,null,null,null,null,null,null,null,null,null,null,null,null,null,null,null,null,null,null,null,null,null,null,null,null,null,null,null,null,null,null,null,null,null,null,null,null,null,null,null,null,null,null,null,null,null,null,null,null,null,null,null,null,null,null,null,null,null,null,null,null,null,null,null,null,null,null,null,null,null,null,null,null,null,null,null,null,null,null,null,null,null,null,null,null,null,null,null,null,null,null,null,null,null,null,null,null,null,null,null,null,null,null,null,null,null,null,null,null,null,null,null,null,null,null,null,null,null,null,null,null,null,null,null,null,null,null,null,null,null,null,null,null,null,null,null,null,null,null,null,null,null,null,null,null,null,null,null,null,null,null,null,null,null,null,null,null,null,null,null,null,null,null,null,null,null,null,null,null,null,null,null,null,null,null,null,null,null,null,null,null,null,null,null,null,null,null,null,null,null,null,null,null,null,null,null,null,null,null,null,null,null,null,null,null,null,null,null,null,null,null,null,null,null,null,null,null,null,null,null,null,null,null,null,null,null,null,null,null,null,null,null,null,null,null,null,null,null,null,null,null,null,null,null,null,null,null,null,null,null,null,null,null,null,null,null,null,null,null,null,null,null,null,null,null,null,null,null,null,null,null,null,null,null,null,null,null,null,null,null,null,null,null,null,null,null,null,null,null,null,null,null,null,null,null,null,null,null,null,null,null,null,null,null,null,null,null,null,null,null,null,null,null,null,null,null,null,null,null,null,null,null,null,null,null,null,null,null,null,null,null,null,null,null,null,null,null,null,null,null,null,null,null,null,null,null,null,null,null,null,null,null,null,null,null,null,null,null,null,null,null,null,null,null,null,null,null,null,null,null,null,null,null,null,null,null,null,null,null,null,null,null,null,null,null,null,null,null,null,null,null,null,null,null,null,null,null,null,null,null,null,null,null,null,null,null,null,null,null,null,null,null,null,null,null,null,null,null,null,null,null,null,null,null,null,null,null,null,null,null,null,null,null,null,null,null,null,null,null,null,null,null,null,null,null,null,null,null,null,null,null,null,null,null,null,null,null,null,null,null,null,null,null,null,null,null,null,null,null,null,null,null,null,null,null,null,null,null,null,null,null,null,null,null,null,null,null,null,null,null,null,null,null,null,null,null,null,null,null,null,null,null,null,null,null,null,null,null,null,null,null,null,null,null,null,null,null,null,null,null,null,null,null,null,null,null,null,null,null,null,null,null,null,null,null,null,null,null,null,null,null,null,null,null,null,null,null,null,null,null,null,null,null,null,null,null,null,null,null,null,null,null,null,null,null,null,null,null,null,null,null,null,null,null,null,null,null,null,null,null,null,null,null,null,null,null,null,null,null,null,null,null,null,null,null,null,null,null,null,null,null,null,null,null,null,null,null,null,null,null,null,null,null,null,null,null,null,null,null,null,null,null,null,null,null,null,null,null,null,null,null,null,null,null,null,null,null,null,null,null,null,null,null,null,null,null,null,null,null,null,null,null,null,null,null,null,null,null,null,null,null,null,null,null,null,null,null,null,null,null,null,null,null,null,null,null,null,null,null,null,null,null,null,null,null,null,null,null,null,null,null,null,null,null,null,null,null,null,null,null,null,null,null,null,null,null,null,null,null,null,null,null,null,null,null,null,null,null,null,null,null,null,null,null,null,null,null,null,null,null,null,null,null,null,null,null,null,null,null,null,null,null,null,null,null,null,null,null,null,null,null,null,null,null,null,null,null,null,null,null,null,null,null,null,null,null,null,null,null,null,null,null,null,null,null,null,null,null,null,null,null,null,null,null,null,null,null,null,null,null,null,null,null,null,null,null,null,null,null,null,null,null,null,null,null,null,null,null,null,null,null,null,null,null,null,null,null,null,null,null,null,null,null,null,null,null,null,null,null,null,null,null,null,null,null,null,null,null,null,null,null,null,null,null,null,null,null,null,null,null,null,null,null,null,null,null,null,null,null,null,null,null,null,null,null,null,null,null,null,null,null,null,null,null,null,null,null,null,null,null,null,null,null,null,null,null,null,null,null,null,null,null,null,null,null,null,null,null,null,null,null,null,null,null,null,null,null,null,null,null,null,null,null,null,null,null,null,null,null,null,null,null,null,null,null,null,null,null,null,null,null,null,null,null,null,null,null,null,null,null,null,null,null,null,null,null,null,null,null,null,null,null,null,null,null,null,null,null,null,null,null,null,null,null,null,null,null,null,null,null,null,null,null,null,null,null,null,null,null,null,null,null,null,null,null,null,null,null,null,null,null,null,null,null,null,null,null,null,null,null,null,null,null,null,null,null,null,null,null,null,null,null,null,null,null,null,null,null,null,null,null,null,null,null,null,null,null,null,null,null,null,null,null,null,null,null,null,null,null,null,null,null,null,null,null,null,null,null,null,null,null,null,null,null,null,null,null,null,null,null,null,null,null,null,null,null,null,null,null,null,null,null,null,null,null,null,null,null,null,null,null,null,null,null,null,null,null,null,null,null,null,null,null,null,null,null,null,null,null,null,null,null,null,null,null,null,null,null,null,null,null,null,null,null,null,null,null,null,null,null,null,null,null,null,null,null,null,null,null,null,null,null,null,null,null,null,null,null,null,null,null,null,null,null,null,null,null,null,null,null,null,null,null,null,null,null,null,null,null,null,null,null,null,null,null,null,null,null,null,null,null,null,null,null,null,null,null,null,null,null,null,null,null,null,null,null,null,null,null,null,null,null,null,null,null,null,null,null,null,null,null,null,null,null,null,null,null,null,null,null,null,null,null,null,null,null,null,null,null,null,null,null,null,null,null,null,null,null,null,null,null,null,null,null,null,null,null,null,null,null,null,null,null,null,null,null,null,null,null,null,null,null,null,null,null,null,null,null,null,null,null,null,null,null,null,null,null,null,null,null,null,null,null,null,null,null,null,null,null,null,null,null,null,null,null,null,null,null,null,null,null,null,null,null,null,null,null,null,null,null,null,null,null,null,null,null,null,null,null,null,null,null,null,null,null,null,null,null,null,null,null,null,null,null,null,null,null,null,null,null,null,null,null,null,null,null,null,null,null,null,null,null,null,null,null,null,null,null,null,null,null,null,null,null,null,null,null,null,null,null,null,null,null,null,null,null,null,null,null,null,null,null,null,null,null,null,null,null,null,null,null,null,null,null,null,null,null,null,null,null,null,null,null,null,null,null,null,null,null,null,null,null,null,null,null,null,null,null,null,null,null,null,null,null,null,null,null,null,null,null,null,null,null,null,null,null,null,null,null,null,null,null,null,null,null,null,null,null,null,null,null,null,null,null,null,null,null,null,null,null,null,null,null,null,null,null,null,null,null,null,null,null,null,null,null,null,null,null,null,null,null,null,null,null,null,null,null,null,null,null,null,null,null,null,null,null,null,null,null,null,null,null,null,null,null,null,null,null,null,null,null,null,null,null,null,null,null,null,null,null,null,null,null,null,null,null,null,null,null,null,null,null,null,null,null,null,null,null,null,null,null,null,null,null,null,null,null,null,null,null,null,null,null,null,null,null,null,null,null,null,null,null,null,null,null,null,null,null,null,null,null,null,null,null,null,null,null,null,null,null,null,null,null,null,null,null,null,null,null,null,null,null,null,null,null,null,null,null,null,null,null,null,null,null,null,null,null,null,null,null,null,null,null,null,null,null,null,null,null,null,null,null,null,null,null,null,null,null,null,null,null,null,null,null,null,null,null,null,null,null,null,null,null,null,null,null,null,null,null,null,null,null,null,null,null,null,null,null,null,null,null,null,null,null,null,null,null,null,null,null,null,null,null,null,null,null,null,null,null,null,null,null,null,null,null,null,null,null,null,null,null,null,null,null,null,null,null,null,null,null,null,null,null,null,null,null,null,null,null,null,null,null,null,null,null,null,null,null,null,null,null,null,null,null,null,null,null,null,null,null,null,null,null,null,null,null,null,null,null,null,null,null,null,null,null,null,null,null,null,null,null,null,null,null,null,null,null,null,null,null,null,null,null,null,null,null,null,null,null,null,null,null,null,null,null,null,null,null,null,null,null,null,null,null,null,null,null,null,null,null,null,null,null,null,null,null,null,null,null,null,null,null,null,null,null,null,null,null,null,null,null,null,null,null,null,null,null,null,null,null,null,null,null,null,null,null,null,null,null,null,null,null,null,null,null,null,null,null,null,null,null,null,null,null,null,null,null,null,null,null,null,null,null,null,null,null,null,null,null,null,null,null,null,null,null,null,null,null,null,null,null,null,null,null,null,null,null,null,null,null,null,null,null,null,null,null,null,null,null,null,null,null,null,null,null,null,null,null,null,null,null,null,null,null,null,null,null,null,null,null,null,null,null,null,null,null,null,null,null,null,null,null,null,null,null,null,null,null,null,null,null,null,null,null,null,null,null,null,null,null,null,null,null,null,null,null,null,null,null,null,null,null,null,null,null,null,null,null,null,null,null,null,null,null,null,null,null,null,null,null,null,null,null,null,null,null,null,null,null,null,null,null,null,null,null,null,null,null,null,null,null,null,null,null,null,null,null,null,null,null,null,null,null,null,null,null,null,null,null,null,null,null,null,null,null,null,null,null,null,null,null,null,null,null,null,null,null,null,null,null,null,null,null,null,null,null,null,null,null,null,null,null,null,null,null,null,null,null,null,null,null,null,null,null,null,null,null,null,null,null,null,null,null,null,null,null,null,null,null,null,null,null,null,null,null,null,null,null,null,null,null,null,null,null,null,null,null,null,null,null,null,null,null,null,null,null,null,null,null,null,null,null,null,null,null,null,null,null,null,null,null,null,null,null,null,null,null,null,null,null,null,null,null,null,null,null,null,null,null,null,null,null,null,null,null,null,null,null,null,null,null,null,null,null,null,null,null,null,null,null,null,null,null,null,null,null,null,null,null,null,null,null,null,null,null,null,null,null,null,null,null,null,null,null,null,null,null,null,null,null,null,null,null,null,null,null,null,null,null,null,null,null,null,null,null,null,null,null,null,null,null,null,null,null,null,null,null,null,null,null,null,null,null,null,null,null,null,null,null,null,null,null,null,null,null,null,null,null,null,null,null,null,null,null,null,null,null,null,null,null,null,null,null,null,null,null,null,null,null,null,null,null,null,null,null,null,null,null,null,null,null,null,null,null,null,null,null,null,null,null,null,null,null,null,null,null,null,null,null,null,null,null,null,null,null,null,null,null,null,null,null,null,null,null,null,null,null,null,null,null,null,null,null,null,null,null,null,null,null,null,null,null,null,null,null,null,null,null,null,null,null,null,null,null,null,null,null,null,null,null,null,null,null,null,null,null,null,null,null,null,null,null,null,null,null,null,null,null,null,null,null,null,null,null,null,null,null,null,null,null,null,null,null,null,null,null,null,null,null,null,null,null,null,null,null,null,null,null,null,null,null,null,null,null,null,null,null,null,null,null,null,null,null,null,null,null,null,null,null,null,null,null,null,null,null,null,null,null,null,null,null,null,null,null,null,null,null,null,null,null,null,null,null,null,null,null,null,null,null,null,null,null,null,null,null,null,null,null,null,null,null,null,null,null,null,null,null,null,null,null,null,null,null,null,null,null,null,null,null,null,null,null,null,null,null,null,null,null,null,null,null,null,null,null,null,null,null,null,null,null,null,null,null,null,null,null,null,null,null,null,null,null,null,null,null,null,null,null,null,null,null,null,null,null,null,null,null,null,null,null,null,null,null,null,null,null,null,null,null,null,null,null,null,null,null,null,null,null,null,null,null,null,null,null,null,null,null,null,null,null,null,null,null,null,null,null,null,null,null,null,null,null,null,null,null,null,null,null,null,null,null,null,null,null,null,null,null,null,null,null,null,null,null,null,null,null,null,null,null,null,null,null,null,null,null,null,null,null,null,null,null,null,null,null,null,null,null,null,null,null,null,null,null,null,null,null,null,null,null,null,null,null,null,null,null,null,null,null,null,null,null,null,null,null,null,null,null,null,null,null,null,null,null,null,null,null,null,null,null,null,null,null,null,null,null,null,null,null,null,null,null,null,null,null,null,null,null,null,null,null,null,null,null,null,null,null,null,null,null,null,null,null,null,null,null,null,null,null,null,null,null,null,null,null,null,null,null,null,null,null,null,null,null,null,null,null,null,null,null,null,null,null,null,null,null,null,null,null,null,null,null,null,null,null,null,null,null,null,null,null,null,null,null,null,null,null,null,null,null,null,null,null,null,null,null,null,null,null,null,null,null,null,null,null,null,null,null,null,null,null,null,null,null,null,null,null,null,null,null,null,null,null,null,null,null,null,null,null,null,null,null,null,null,null,null,null,null,null,null,null,null,null,null,null,null,null,null,null,null,null,null,null,null,null,null,null,null,null,null,null,null,null,null,null,null,null,null,null,null,null,null,null,null,null,null,null,null,null,null,null,null,null,null,null,null,null,null,null,null,null,null,null,null,null,null,null,null,null,null,null,null,null,null,null,null,null,null,null,null,null,null,null,null,null,null,null,null,null,null,null,null,null,null,null,null,null,null,null,null,null,null,null,null,null,null,null,null,null,null,null,null,null,null,null,null,null,null,null,null,null,null,null,null,null,null,null,null,null,null,null,null,null,null,null,null,null,null,null,null,null,null,null,null,null,null,null,null,null,null,null,null,null,null,null,null,null,null,null,null,null,null,null,null,null,null,null,null,null,null,null,null,null,null,null,null,null,null,null,null,null,null,null,null,null,null,null,null,null,null,null,null,null,null,null,null,null,null,null,null,null,null,null,null,null,null,null,null,null,null,null,null,null,null,null,null,null,null,null,null,null,null,null,null,null,null,null,null,null,null,null,null,null,null,null,null,null,null,null,null,null,null,null,null,null,null,null,null,null,null,null,null,null,null,null,null,null,null,null,null,null,null,null,null,null,null,null,null,null,null,null,null,null,null,null,null,null,null,null,null,null,null,null,null,null,null,null,null,null,null,null,null,null,null,null,null,null,null,null,null,null,null,null,null,null,null,null,null,null,null,null,null,null,null,null,null,null,null,null,null,null,null,null,null,null,null,null,null,null,null,null,null,null,null,null,null,null,null,null,null,null,null,null,null,null,null,null,null,null,null,null,null,null,null,null,null,null,null,null,null,null,null,null,null,null,null,null,null,null,null,null,null,null,null,null,null,null,null,null,null,null,null,null,null,null,null,null,null,null,null,null,null,null,null,null,null,null,null,null,null,null,null,null,null,null,null,null,null,null,null,null,null,null,null,null,null,null,null,null,null,null,null,null,null,null,null,null,null,null,null,null,null,null,null,null,null,null,null,null,null,null,null,null,null,null,null,null,null,null,null,null,null,null,null,null,null,null,null,null,null,null,null,null,null,null,null,null,null,null,null,null,null,null,null,null,null,null,null,null,null,null,null,null,null,null,null,null,null,null,null,null,null,null,null,null,null,null,null,null,null,null,null,null,null,null,null,null,null,null,null,null,null,null,null,null,null,null,null,null,null,null,null,null,null,null,null,null,null,null,null,null,null,null,null,null,null,null,null,null,null,null,null,null,null,null,null,null,null,null,null,null,null,null,null,null,null,null,null,null,null,null,null,null,null,null,null,null,null,null,null,null,null,null,null,null,null,null,null,null,null,null,null,null,null,null,null,null,null,null,null,null,null,null,null,null,null,null,null,null,null,null,null,null,null,null,null,null,null,null,null,null,null,null,null,null,null,null,null,null,null,null,null,null,null,null,null,null,null,null,null,null,null,null,null,null,null,null,null,null,null,null,null,null,null,null,null,null,null,null,null,null,null,null,null,null,null,null,null,null,null,null,null,null,null,null,null,null,null,null,null,null,null,null,null,null,null,null,null,null,null,null,null,null,null,null,null,null,null,null,null,null,null,null,null,null,null,null,null,null,null,null,null,null,null,null,null,null,null,null,null,null,null,null,null,null,null,null,null,null,null,null,null,null,null,null,null,null,null,null,null,null,null,null,null,null,null,null,null,null,null,null,null,null,null,null,null,null,null,null,null,null,null,null,null,null,null,null,null,null,null,null,null,null,null,null,null,null,null,null,null,null,null,null,null,null,null,null,null,null,null,null,null,null,null,null,null,null,null,null,null,null,null,null,null,null,null,null,null,null,null,null,null,null,null,null,null,null,null,null,null,null,null,null,null,null,null,null,null,null,null,null,null,null,null,null,null,null,null,null,null,null,null,null,null,null,null,null,null,null,null,null,null,null,null,null,null,null,null,null,null,null,null,null,null,null,null,null,null,null,null,null,null,null,null,null,null,null,null,null,null,null,null,null,null,null,null,null,null,null,null,null,null,null,null,null,null,null,null,null,null,null,null,null,null,null,null,null,null,null,null,null,null,null,null,null,null,null,null,null,null,null,null,null,null,null,null,null,null,null,null,null,null,null,null,null,null,null,null,null,null,null,null,null,null,null,null,null,null,null,null,null,null,null,null,null,null,null,null,null,null,null,null,null,null,null,null,null,null,null,null,null,null,null,null,null,null,null,null,null,null,null,null,null,null,null,null,null,null,null,null,null,null,null,null,null,null,null,null,null,null,null,null,null,null,null,null,null,null,null,null,null,null,null,null,null,null,null,null,null,null,null,null,null,null,null,null,null,null,null,null,null,null,null,null,null,null,null,null,null,null,null,null,null,null,null,null,null,null,null,null,null,null,null,null,null,null,null,null,null,null,null,null,null,null,null,null,null,null,null,null,null,null,null,null,null,null,null,null,null,null,null,null,null,null,null,null,null,null,null,null,null,null,null,null,null,null,null,null,null,null,null,null,null,null,null,null,null,null,null,null,null,null,null,null,null,null,null,null,null,null,null,null,null,null,null,null,null,null,null,null,null,null,null,null,null,null,null,null,null,null,null,null,null,null,null,null,null,null,null,null,null,null,null,null,null,null,null,null,null,null,null,null,null,null,null,null,null,null,null,null,null,null,null,null,null,null,null,null,null,null,null,null,null,null,null,null,null,null,null,null,null,null,null,null,null,null,null,null,null,null,null,null,null,null,null,null,null,null,null,null,null,null,null,null,null,null,null,null,null,null,null,null,null,null,null,null,null,null,null,null,null,null,null,null,null,null,null,null,null,null,null,null,null,null,null,null,null,null,null,null,null,null,null,null,null,null,null,null,null,null,null,null,null,null,null,null,null,null,null,null,null,null,null,null,null,null,null,null,null,null,null,null,null,null,null,null,null,null,null,null,null,null,null,null,null,null,null,null,null,null,null,null,null,null,null,null,null,null,null,null,null,null,null,null,null,null,null,null,null,null,null,null,null,null,null,null,null,null,null,null,null,null,null,null,null,null,null,null,null,null,null,null,null,null,null,null,null,null,null,null,null,null,null,null,null,null,null,null,null,null,null,null,null,null,null,null,null,null,null,null,null,null,null,null,null,null,null,null,null,null,null,null,null,null,null,null,null,null,null,null,null,null,null,null,null,null,null,null,null,null,null,null,null,null,null,null,null,null,null,null,null,null,null,null,null,null,null,null,null,null,null,null,null,null,null,null,null,null,null,null,null,null,null,null,null,null,null,null,null,null,null,null,null,null,null,null,null,null,null,null,null,null,null,null,null,null,null,null,null,null,null,null,null,null,null,null,null,null,null,null,null,null,null,null,null,null,null,null,null,null,null,null,null,null,null,null,null,null,null,null,null,null,null,null,null,null,null,null,null,null,null,null,null,null,null,null,null,null,null,null,null,null,null,null,null,null,null,null,null,null,null,null,null,null,null,null,null,null,null,null,null,null,null,null,null,null,null,null,null,null,null,null,null,null,null,null,null,null,null,null,null,null,null,null,null,null,null,null,null,null,null,null,null,null,null,null,null,null,null,null,null,null,null,null,null,null,null,null,null,null,null,null,null,null,null,null,null,null,null,null,null,null,null,null,null,null,null,null,null,null,null,null,null,null,null,null,null,null,null,null,null,null,null,null,null,null,null,null,null,null,null,null,null,null,null,null,null,null,null,null,null,null,null,null,null,null,null,null,null,null,null,null,null,null,null,null,null,null,null,null,null,null,null,null,null,null,null,null,null,null,null,null,null,null,null,null,null,null,null,null,null,null,null,null,null,null,null,null,null,null,null,null,null,null,null,null,null,null,null,null,null,null,null,null,null,null,null,null,null,null,null,null,null,null,null,null,null,null,null,null,null,null,null,null,null,null,null,null,null,null,null,null,null,null,null,null,null,null,null,null,null,null,null,null,null,null,null,null,null,null,null,null,null,null,null,null,null,null,null,null,null,null,null,null,null,null,null,null,null,null,null,null,null,null,null,null,null,null,null,null,null,null,null,null,null,null,null,null,null,null,null,null,null,null,null,null,null,null,null,null,null,null,null,null,null,null,null,null,null,null,null,null,null,null,null,null,null,null,null,null,null,null,null,null,null,null,null,null,null,null,null,null,null,null,null,null,null,null,null,null,null,null,null,null,null,null,null,null,null,null,null,null,null,null,null,null,null,null,null,null,null,null,null,null,null,null,null,null,null,null,null,null,null,null,null,null,null,null,null,null,null,null,null,null,null,null,null,null,null,null,null,null,null,null,null,null,null,null,null,null,null,null,null,null,null,null,null,null,null,null,null,null,null,null,null,null,null,null,null,null,null,null,null,null,null,null,null,null,null,null,null,null,null,null,null,null,null,null,null,null,null,null,null,null,null,null,null,null,null,null,null,null,null,null,null,null,null,null,null,null,null,null,null,null,null,null,null,null,null,null,null,null,null,null,null,null,null,null,null,null,null,null,null,null,null,null,null,null,null,null,null,null,null,null,null,null,null,null,null,null,null,null,null,null,null,null,null,null,null,null,null,null,null,null,null,null,null,null,null,null,null,null,null,null,null,null,null,null,null,null,null,null,null,null,null,null,null,null,null,null,null,null,null,null,null,null,null,null,null,null,null,null,null,null,null,null,null,null,null,null,null,null,null,null,null,null,null,null,null,null,null,null,null,null,null,null,null,null,null,null,null,null,null,null,null,null,null,null,null,null,null,null,null,null,null,null,null,null,null,null,null,null,null,null,null,null,null,null,null,null,null,null,null,null,null,null,null,null,null,null,null,null,null,null,null,null,null,null,null,null,null,null,null,null,null,null,null,null,null,null,null,null,null,null,null,null,null,null,null,null,null,null,null,null,null,null,null,null,null,null,null,null,null,null,null,null,null,null,null,null,null,null,null,null,null,null,null,null,null,null,null,null,null,null,null,null,null,null,null,null,null,null,null,null,null,null,null,null,null,null,null,null,null,null,null,null,null,null,null,null,null,null,null,null,null,null,null,null,null,null,null,null,null,null,null,null,null,null,null,null,null,null,null,null,null,null,null,null,null,null,null,null,null,null,null,null,null,null,null,null,null,null,null,null,null,null,null,null,null,null,null,null,null,null,null,null,null,null,null,null,null,null,null,null,null,null,null,null,null,null,null,null,null,null,null,null,null,null,null,null,null,null,null,null,null,null,null,null,null,null,null,null,null,null,null,null,null,null,null,null,null,null,null,null,null,null,null,null,null,null,null,null,null,null,null,null,null,null,null,null,null,null,null,null,null,null,null,null,null,null,null,null,null,null,null,null,null,null,null,null,null,null,null,null,null,null,null,null,null,null,null,null,null,null,null,null,null,null,null,null,null,null,null,null,null,null,null,null,null,null,null,null,null,null,null,null,null,null,null,null,null,null,null,null,null,null,null,null,null,null,null,null,null,null,null,null,null,null,null,null,null,null,null,null,null,null,null,null,null,null,null,null,null,null,null,null,null,null,null,null,null,null,null,null,null,null,null,null,null,null,null,null,null,null,null,null,null,null,null,null,null,null,null,null,null,null,null,null,null,null,null,null,null,null,null,null,null,null,null,null,null,null,null,null,null,null,null,null,null,null,null,null,null,null,null,null,null,null,null,null,null,null,null,null,null,null,null,null,null,null,null,null,null,null,null,null,null,null,null,null,null,null,null,null,null,null,null,null,null,null,null,null,null,null,null,null,null,null,null,null,null,null,null,null,null,null,null,null,null,null,null,null,null,null,null,null,null,null,null,null,null,null,null,null,null,null,null,null,null,null,null,null,null,null,null,null,null,null,null,null,null,null,null,null,null,null,null,null,null,null,null,null,null,null,null,null,null,null,null,null,null,null,null,null,null,null,null,null,null,null,null,null,null,null,null,null,null,null,null,null,null,null,null,null,null,null,null,null,null,null,null,null,null,null,null,null,null,null,null,null,null,null,null,null,null,null,null,null,null,null,null,null,null,null,null,null,null,null,null,null,null,null,null,null,null,null,null,null,null,null,null,null,null,null,null,null,null,null,null,null,null,null,null,null,null,null,null,null,null,null,null,null,null,null,null,null,null,null,null,null,null,null,null,null,null,null,null,null,null,null,null,null,null,null,null,null,null,null,null,null,null,null,null,null,null,null,null,null,null,null,null,null,null,null,null,null,null,null,null,null,null,null,null,null,null,null,null,null,null,null,null,null,null,null,null,null,null,null,null,null,null,null,null,null,null,null,null,null,null,null,null,null,null,null,null,null,null,null,null,null,null,null,null,null,null,null,null,null,null,null,null,null,null,null,null,null,null,null,null,null,null,null,null,null,null,null,null,null,null,null,null,null,null,null,null,null,null,null,null,null,null,null,null,null,null,null,null,null,null,null,null,null,null,null,null,null,null,null,null,null,null,null,null,null,null,null,null,null,null,null,null,null,null,null,null,null,null,null,null,null,null,null,null,null,null,null,null,null,null,null,null,null,null,null,null,null,null,null,null,null,null,null,null,null,null,null,null,null,null,null,null,null,null,null,null,null,null,null,null,null,null,null,null,null,null,null,null,null,null,null,null,null,null,null,null,null,null,null,null,null,null,null,null,null,null,null,null,null,null,null,null,null,null,null,null,null,null,null,null,null,null,null,null,null,null,null,null,null,null,null,null,null,null,null,null,null,null,null,null,null,null,null,null,null,null,null,null,null,null,null,null,null,null,null,null,null,null,null,null,null,null,null,null,null,null,null,null,null,null,null,null,null,null,null,null,null,null,null,null,null,null,null,null,null,null,null,null,null,null,null,null,null,null,null,null,null,null,null,null,null,null,null,null,null,null,null,null,null,null,null,null,null,null,null,null,null,null,null,null,null,null,null,null,null,null,null,null,null,null,null,null,null,null,null,null,null,null,null,null,null,null,null,null,null,null,null,null,null,null,null,null,null,null,null,null,null,null,null,null,null,null,null,null,null,null,null,null,null,null,null,null,null,null,null,null,null,null,null,null,null,null,null,null,null,null,null,null,null,null,null,null,null,null,null,null,null,null,null,null,null,null,null,null,null,null,null,null,null,null,null,null,null,null,null,null,null,null,null,null,null,null,null,null,null,null,null,null,null,null,null,null,null,null,null,null,null,null,null,null,null,null,null,null,null,null,null,null,null,null,null,null,null,null,null,null,null,null,null,null,null,null,null,null,null,null,null,null,null,null,null,null,null,null,null,null,null,null,null,null,null,null,null,null,null,null,null,null,null,null,null,null,null,null,null,null,null,null,null,null,null,null,null,null,null,null,null,null,null,null,null,null,null,null,null,null,null,null,null,null,null,null,null,null,null,null,null,null,null,null,null,null,null,null,null,null,null,null,null,null,null,null,null,null,null,null,null,null,null,null,null,null,null,null,null,null,null,null,null,null,null,null,null,null,null,null,null,null,null,null,null,null,null,null,null,null,null,null,null,null,null,null,null,null,null,null,null,null,null,null,null,null,null,null,null,null,null,null,null,null,null,null,null,null,null,null,null,null,null,null,null,null,null,null,null,null,null,null,null,null,null,null,null,null,null,null,null,null,null,null,null,null,null,null,null,null,null,null,null,null,null,null,null,null,null,null,null,null,null,null,null,null,null,null,null,null,null,null,null,null,null,null,null,null,null,null,null,null,null,null,null,null,null,null,null,null,null,null,null,null,null,null,null,null,null,null,null,null,null,null,null,null,null,null,null,null,null,null,null,null,null,null,null,null,null,null,null,null,null,null,null,null,null,null,null,null,null,null,null,null,null,null,null,null,null,null,null,null,null,null,null,null,null,null,null,null,null,null,null,null,null,null,null,null,null,null,null,null,null,null,null,null,null,null,null,null,null,null,null,null,null,null,null,null,null,null,null,null,null,null,null,null,null,null,null,null,null,null,null,null,null,null,null,null,null,null,null,null,null,null,null,null,null,null,null,null,null,null,null,null,null,null,null,null,null,null,null,null,null,null,null,null,null,null,null,null,null,null,null,null,null,null,null,null,null,null,null,null,null,null,null,null,null,null,null,null,null,null,null,null,null,null,null,null,null,null,null,null,null,null,null,null,null,null,null,null,null,null,null,null,null,null,null,null,null,null,null,null,null,null,null,null,null,null,null,null,null,null,null,null,null,null,null,null,null,null,null,null,null,null,null,null,null,null,null,null,null,null,null,null,null,null,null,null,null,null,null,null,null,null,null,null,null,null,null,null,null,null,null,null,null,null,null,null,null,null,null,null,null,null,null,null,null,null,null,null,null,null,null,null,null,null,null,null,null,null,null,null,null,null,null,null,null,null,null,null,null,null,null,null,null,null,null,null,null,null,null,null,null,null,null,null,null,null,null,null,null,null,null,null,null,null,null,null,null,null,null,null,null,null,null,null,null,null,null,null,null,null,null,null,null,null,null,null,null,null,null,null,null,null,null,null,null,null,null,null,null,null,null,null,null,null,null,null,null,null,null,null,null,null,null,null,null,null,null,null,null,null,null,null,null,null,null,null,null,null,null,null,null,null,null,null,null,null,null,null,null,null,null,null,null,null,null,null,null,null,null,null,null,null,null,null,null,null,null,null,null,null,null,null,null,null,null,null,null,null,null,null,null,null,null,null,null,null,null,null,null,null,null,null,null,null,null,null,null,null,null,null,null,null,null,null,null,null,null,null,null,null,null,null,null,null,null,null,null,null,null,null,null,null,null,null,null,null,null,null,null,null,null,null,null,null,null,null,null,null,null,null,null,null,null,null,null,null,null,null,null,null,null,null,null,null,null,null,null,null,null,null,null,null,null,null,null,null,null,null,null,null,null,null,null,null,null,null,null,null,null,null,null,null,null,null,null,null,null,null,null,null,null,null,null,null,null,null,null,null,null,null,null,null,null,null,null,null,null,null,null,null,null,null,null,null,null,null,null,null,null,null,null,null,null,null,null,null,null,null,null,null,null,null,null,null,null,null,null,null,null,null,null,null,null,null,null,null,null,null,null,null,null,null,null,null,null,null,null,null,null,null,null,null,null,null,null,null,null,null,null,null,null,null,null,null,null,null,null,null,null,null,null,null,null,null,null,null,null,null,null,null,null,null,null,null,null,null,null,null,null,null,null,null,null,null,null,null,null,null,null,null,null,null,null,null,null,null,null,null,null,null,null,null,null,null,null,null,null,null,null,null,null,null,null,null,null,null,null,null,null,null,null,null,null,null,null,null,null,null,null,null,null,null,null,null,null,null,null,null,null,null,null,null,null,null,null,null,null,null,null,null,null,null,null,null,null,null,null,null,null,null,null,null,null,null,null,null,null,null,null,null,null,null,null,null,null,null,null,null,null,null,null,null,null,null,null,null,null,null,null,null,null,null,null,null,null,null,null,null,null,null,null,null,null,null,null,null,null,null,null,null,null,null,null,null,null,null,null,null,null,null,null,null,null,null,null,null,null,null,null,null,null,null,null,null,null,null,null,null,null,null,null,null,null,null,null,null,null,null,null,null,null,null,null,null,null,null,null,null,null,null,null,null,null,null,null,null,null,null,null,null,null,null,null,null,null,null,null,null,null,null,null,null,null,null,null,null,null,null,null,null,null,null,null,null,null,null,null,null,null,null,null,null,null,null,null,null,null,null,null,null,null,null,null,null,null,null,null,null,null,null,null,null,null,null,null,null,null,null,null,null,null,null,null,null,null,null,null,null,null,null,null,null,null,null,null,null,null,null,null,null,null,null,null,null,null,null,null,null,null,null,null,null,null,null,null,null,null,null,null,null,null,null,null,null,null,null,null,null,null,null,null,null,null,null,null,null,null,null,null,null,null,null,null,null,null,null,null,null,null,null,null,null,null,null,null,null,null,null,null,null,null,null,null,null,null,null,null,null,null,null,null,null,null,null,null,null,null,null,null,null,null,null,null,null,null,null,null,null,null,null,null,null,null,null,null,null,null,null,null,null,null,null,null,null,null,null,null,null,null,null,null,null,null,null,null,null,null,null,null,null,null,null,null,null,null,null,null,null,null,null,null,null,null,null,null,null,null,null,null,null,null,null,null,null,null,null,null,null,null,null,null,null,null,null,null,null,null,null,null,null,null,null,null,null,null,null,null,null,null,null,null,null,null,null,null,null,null,null,null,null,null,null,null,null,null,null,null,null,null,null,null,null,null,null,null,null,null,null,null,null,null,null,null,null,null,null,null,null,null,null,null,null,null,null,null,null,null,null,null,null,null,null,null,null,null,null,null,null,null,null,null,null,null,null,null,null,null,null,null,null,null,null,null,null,null,null,null,null,null,null,null,null,null,null,null,null,null,null,null,null,null,null,null,null,null,null,null,null,null,null,null,null,null,null,null,null,null,null,null,null,null,null,null,null,null,null,null,null,null,null,null,null,null,null,null,null,null,null,null,null,null,null,null,null,null,null,null,null,null,null,null,null,null,null,null,null,null,null,null,null,null,null,null,null,null,null,null,null,null,null,null,null,null,null,null,null,null,null,null,null,null,null,null,null,null,null,null,null,null,null,null,null,null,null,null,null,null,null,null,null,null,null,null,null,null,null,null,null,null,null,null,null,null,null,null,null,null,null,null,null,null,null,null,null,null,null,null,null,null,null,null,null,null,null,null,null,null,null,null,null,null,null,null,null,null,null,null,null,null,null,null,null,null,null,null,null,null,null,null,null,null,null,null,null,null,null,null,null,null,null,null,null,null,null,null,null,null,null,null,null,null,null,null,null,null,null,null,null,null,null,null,null,null,null,null,null,null,null,null,null,null,null,null,null,null,null,null,null,null,null,null,null,null,null,null,null,null,null,null,null,null,null,null,null,null,null,null,null,null,null,null,null,null,null,null,null,null,null,null,null,null,null,null,null,null,null,null,null,null,null,null,null,null,null,null,null,null,null,null,null,null,null,null,null,null,null,null,null,null,null,null,null,null,null,null,null,null,null,null,null,null,null,null,null,null,null,null,null,null,null,null,null,null,null,null,null,null,null,null,null,null,null,null,null,null,null,null,null,null,null,null,null,null,null,null,null,null,null,null,null,null,null,null,null,null,null,null,null,null,null,null,null,null,null,null,null,null,null,null,null,null,null,null,null,null,null,null,null,null,null,null,null,null,null,null,null,null,null,null,null,null,null,null,null,null,null,null,null,null,null,null,null,null,null,null,null,null,null,null,null,null,null,null,null,null,null,null,null,null,null,null,null,null,null,null,null,null,null,null,null,null,null,null,null,null,null,null,null,null,null,null,null,null,null,null,null,null,null,null,null,null,null,null,null,null,null,null,null,null,null,null,null,null,null,null,null,null,null,null,null,null,null,null,null,null,null,null,null,null,null,null,null,null,null,null,null,null,null,null,null,null,null,null,null,null,null,null,null,null,null,null,null,null,null,null,null,null,null,null,null,null,null,null,null,null,null,null,null,null,null,null,null,null,null,null,null,null,null,null,null,null,null,null,null,null,null,null,null,null,null,null,null,null,null,null,null,null,null,null,null,null,null,null,null,null,null,null,null,null,null,null,null,null,null,null,null,null,null,null,null,null,null,null,null,null,null,null,null,null,null,null,null,null,null,null,null,null,null,null,null,null,null,null,null,null,null,null,null,null,null,null,null,null,null,null,null,null,null,null,null,null,null,null,null,null,null,null,null,null,null,null,null,null,null,null,null,null,null,null,null,null,null,null,null,null,null,null,null,null,null,null,null,null,null,null,null,null,null,null,null,null,null,null,null,null,null,null,null,null,null,null,null,null,null,null,null,null,null,null,null,null,null,null,null,null,null,null,null,null,null,null,null,null,null,null,null,null,null,null,null,null,null,null,null,null,null,null,null,null,null,null,null,null,null,null,null,null,null,null,null,null,null,null,null,null,null,null,null,null,null,null,null,null,null,null,null,null,null,null,null,null,null,null,null,null,null,null,null,null,null,null,null,null,null,null,null,null,null,null,null,null,null,null,null,null,null,null,null,null,null,null,null,null,null,null,null,null,null,null,null,null,null,null,null,null,null,null,null,null,null,null,null,null,null,null,null,null,null,null,null,null,null,null,null,null,null,null,null,null,null,null,null,null,null,null,null,null,null,null,null,null,null,null,null,null,null,null,null,null,null,null,null,null,null,null,null,null,null,null,null,null,null,null,null,null,null,null,null,null,null,null,null,null,null,null,null,null,null,null,null,null,null,null,null,null,null,null,null,null,null,null,null,null,null,null,null,null,null,null,null,null,null,null,null,null,null,null,null,null,null,null,null,null,null,null,null,null,null,null,null,null,null,null,null,null,null,null,null,null,null,null,null,null,null,null,null,null,null,null,null,null,null,null,null,null,null,null,null,null,null,null,null,null,null,null,null,null,null,null,null,null,null,null,null,null,null,null,null,null,null,null,null,null,null,null,null,null,null,null,null,null,null,null,null,null,null,null,null,null,null,null,null,null,null,null,null,null,null,null,null,null,null,null,null,null,null,null,null,null,null,null,null,null,null,null,null,null,null,null,null,null,null,null,null,null,null,null,null,null,null,null,null,null,null,null,null,null,null,null,null,null,null,null,null,null,null,null,null,null,null,null,null,null,null,null,null,null,null,null,null,null,null,null,null,null,null,null,null,null,null,null,null,null,null,null,null,null,null,null,null,null,null,null,null,null,null,null,null,null,null,null,null,null,null,null,null,null,null,null,null,null,null,null,null,null,null,null,null,null,null,null,null,null,null,null,null,null,null,null,null,null,null,null,null,null,null,null,null,null,null,null,null,null,null,null,null,null,null,null,null,null,null,null,null,null,null,null,null,null,null,null,null,null,null,null,null,null,null,null,null,null,null,null,null,null,null,null,null,null,null,null,null,null,null,null,null,null,null,null,null,null,null,null,null,null,null,null,null,null,null,null,null,null,null,null,null,null,null,null,null,null,null,null,null,null,null,null,null,null,null,null,null,null,null,null,null,null,null,null,null,null,null,null,null,null,null,null,null,null,null,null,null,null,null,null,null,null,null,null,null,null,null,null,null,null,null,null,null,null,null,null,null,null,null,null,null,null,null,null,null,null,null,null,null,null,null,null,null,null,null,null,null,null,null,null,null,null,null,null,null,null,null,null,null,null,null,null,null,null,null,null,null,null,null,null,null,null,null,null,null,null,null,null,null,null,null,null,null,null,null,null,null,null,null,null,null,null,null,null,null,null,null,null,null,null,null,null,null,null,null,null,null,null,null,null,null,null,null,null,null,null,null,null,null,null,null,null,null,null,null,null,null,null,null,null,null,null,null,null,null,null,null,null,null,null,null,null,null,null,null,null,null,null,null,null,null,null,null,null,null,null,null,null,null,null,null,null,null,null,null,null,null,null,null,null,null,null,null,null,null,null,null,null,null,null,null,null,null,null,null,null,null,null,null,null,null,null,null,null,null,null,null,null,null,null,null,null,null,null,null,null,null,null,null,null,null,null,null,null,null,null,null,null,null,null,null,null,null,null,null,null,null,null,null,null,null,null,null,null,null,null,null,null,null,null,null,null,null,null,null,null,null,null,null,null,null,null,null,null,null,null,null,null,null,null,null,null,null,null,null,null,null,null,null,null,null,null,null,null,null,null,null,null,null,null,null,null,null,null,null,null,null,null,null,null,null,null,null,null,null,null,null,null,null,null,null,null,null,null,null,null,null,null,null,null,null,null,null,null,null,null,null,null,null,null,null,null,null,null,null,null,null,null,null,null,null,null,null,null,null,null,null,null,null,null,null,null,null,null,null,null,null,null,null,null,null,null,null,null,null,null,null,null,null,null,null,null,null,null,null,null,null,null,null,null,null,null,null,null,null,null,null,null,null,null,null,null,null,null,null,null,null,null,null,null,null,null,null,null,null,null,null,null,null,null,null,null,null,null,null,null,null,null,null,null,null,null,null,null,null,null,null,null,null,null,null,null,null,null,null,null,null,null,null,null,null,null,null,null,null,null,null,null,null,null,null,null,null,null,null,null,null,null,null,null,null,null,null,null,null,null,null,null,null,null,null,null,null,null,null,null,null,null,null,null,null,null,null,null,null,null,null,null,null,null,null,null,null,null,null,null,null,null,null,null,null,null,null,null,null,null,null,null,null,null,null,null,null,null,null,null,null,null,null,null,null,null,null,null,null,null,null,null,null,null,null,null,null,null,null,null,null,null,null,null,null,null,null,null,null,null,null,null,null,null,null,null,null,null,null,null,null,null,null,null,null,null,null,null,null,null,null,null,null,null,null,null,null,null,null,null,null,null,null,null,null,null,null,null,null,null,null,null,null,null,null,null,null,null,null,null,null,null,null,null,null,null,null,null,null,null,null,null,null,null,null,null,null,null,null,null,null,null,null,null,null,null,null,null,null,null,null,null,null,null,null,null,null,null,null,null,null,null,null,null,null,null,null,null,null,null,null,null,null,null,null,null,null,null,null,null,null,null,null,null,null,null,null,null,null,null,null,null,null,null,null,null,null,null,null,null,null,null,null,null,null,null,null,null,null,null,null,null,null,null,null,null,null,null,null,null,null,null,null,null,null,null,null,null,null,null,null,null,null,null,null,null,null,null,null,null,null,null,null,null,null,null,null,null,null,null,null,null,null,null,null,null,null,null,null,null,null,null,null,null,null,null,null,null,null,null,null,null,null,null,null,null,null,null,null,null,null,null,null,null,null,null,null,null,null,null,null,null,null,null,null,null,null,null,null,null,null,null,null,null,null,null,null,null,null,null,null,null,null,null,null,null,null,null,null,null,null,null,null,null,null,null,null,null,null,null,null,null,null,null,null,null,null,null,null,null,null,null,null,null,null,null,null,null,null,null,null,null,null,null,null,null,null,null,null,null,null,null,null,null,null,null,null,null,null,null,null,null,null,null,null,null,null,null,null,null,null,null,null,null,null,null,null,null,null,null,null,null,null,null,null,null,null,null,null,null,null,null,null,null,null,null,null,null,null,null,null,null,null,null,null,null,null,null,null,null,null,null,null,null,null,null,null,null,null,null,null,null,null,null,null,null,null,null,null,null,null,null,null,null,null,null,null,null,null,null,null,null,null,null,null,null,null,null,null,null,null,null,null,null,null,null,null,null,null,null,null,null,null,null,null,null,null,null,null,null,null,null,null,null,null,null,null,null,null,null,null,null,null,null,null,null,null,null,null,null,null,null,null,null,null,null,null,null,null,null,null,null,null,null,null,null,null,null,null,null,null,null,null,null,null,null,null,null,null,null,null,null,null,null,null,null,null,null,null,null,null,null,null,null,null,null,null,null,null,null,null,null,null,null,null,null,null,null,null,null,null,null,null,null,null,null,null,null,null,null,null,null,null,null,null,null,null,null,null,null,null,null,null,null,null,null,null,null,null,null,null,null,null,null,null,null,null,null,null,null,null,null,null,null,null,null,null,null,null,null,null,null,null,null,null,null,null,null,null,null,null,null,null,null,null,null,null,null,null,null,null,null,null,null,null,null,null,null,null,null,null,null,null,null,null,null,null,null,null,null,null,null,null,null,null,null,null,null,null,null,null,null,null,null,null,null,null,null,null,null,null,null,null,null,null,null,null,null,null,null,null,null,null,null,null,null,null,null,null,null,null,null,null,null,null,null,null,null,null,null,null,null,null,null,null,null,null,null,null,null,null,null,null,null,null,null,null,null,null,null,null,null,null,null,null,null,null,null,null,null,null,null,null,null,null,null,null,null,null,null,null,null,null,null,null,null,null,null,null,null,null,null,null,null,null,null,null,null,null,null,null,null,null,null,null,null,null,null,null,null,null,null,null,null,null,null,null,null,null,null,null,null,null,null,null,null,null,null,null,null,null,null,null,null,null,null,null,null,null,null,null,null,null,null,null,null,null,null,null,null,null,null,null,null,null,null,null,null,null,null,null,null,null,null,null,null,null,null,null,null,null,null,null,null,null,null,null,null,null,null,null,null,null,null,null,null,null,null,null,null,null,null,null,null,null,null,null,null,null,null,null,null,null,null,null,null,null,null,null,null,null,null,null,null,null,null,null,null,null,null,null,null,null,null,null,null,null,null,null,null,null,null,null,null,null,null,null,null,null,null,null,null,null,null,null,null,null,null,null,null,null,null,null,null,null,null,null,null,null,null,null,null,null,null,null,null,null,null,null,null,null,null,null,null,null,null,null,null,null,null,null,null,null,null,null,null,null,null,null,null,null,null,null,null,null,null,null,null,null,null,null,null,null,null,null,null,null,null,null,null,null,null,null,null,null,null,null,null,null,null,null,null,null,null,null,null,null,null,null,null,null,null,null,null,null,null,null,null,null,null,null,null,null,null,null,null,null,null,null,null,null,null,null,null,null,null,null,null,null,null,null,null,null,null,null,null,null,null,null,null,null,null,null,null,null,null,null,null,null,null,null,null,null,null,null,null,null,null,null,null,null,null,null,null,null,null,null,null,null,null,null,null,null,null,null,null,null,null,null,null,null,null,null,null,null,null,null,null,null,null,null,null,null,null,null,null,null,null,null,null,null,null,null,null,null,null,null,null,null,null,null,null,null,null,null,null,null,null,null,null,null,null,null,null,null,null,null,null,null,null,null,null,null,null,null,null,null,null,null,null,null,null,null,null,null,null,null,null,null,null,null,null,null,null,null,null,null,null,null,null,null,null,null,null,null,null,null,null,null,null,null,null,null,null,null,null,null,null,null,null,null,null,null,null,null,null,null,null,null,null,null,null,null,null,null,null,null,null,null,null,null,null,null,null,null,null,null,null,null,null,null,null,null,null,null,null,null,null,null,null,null,null,null,null,null,null,null,null,null,null,null,null,null,null,null,null,null,null,null,null,null,null,null,null,null,null,null,null,null,null,null,null,null,null,null,null,null,null,null,null,null,null,null,null,null,null,null,null,null,null,null,null,null,null,null,null,null,null,null,null,null,null,null,null,null,null,null,null,null,null,null,null,null,null,null,null,null,null,null,null,null,null,null,null,null,null,null,null,null,null,null,null,null,null,null,null,null,null,null,null,null,null,null,null,null,null,null,null,null,null,null,null,null,null,null,null,null,null,null,null,null,null,null,null,null,null,null,null,null,null,null,null,null,null,null,null,null,null,null,null,null,null,null,null,null,null,null,null,null,null,null,null,null,null,null,null,null,null,null,null,null,null,null,null,null,null,null,null,null,null,null,null,null,null,null,null,null,null,null,null,null,null,null,null,null,null,null,null,null,null,null,null,null,null,null,null,null,null,null,null,null,null,null,null,null,null,null,null,null,null,null,null,null,null,null,null,null,null,null,null,null,null,null,null,null,null,null,null,null,null,null,null,null,null,null,null,null,null,null,null,null,null,null,null,null,null,null,null,null,null,null,null,null,null,null,null,null,null,null,null,null,null,null,null,null,null,null,null,null,null,null,null,null,null,null,null,null,null,null,null,null,null,null,null,null,null,null,null,null,null,null,null,null,null,null,null,null,null,null,null,null,null,null,null,null,null,null,null,null,null,null,null,null,null,null,null,null,null,null,null,null,null,null,null,null,null,null,null,null,null,null,null,null,null,null,null,null,null,null,null,null,null,null,null,null,null,null,null,null,null,null,null,null,null,null,null,null,null,null,null,null,null,null,null,null,null,null,null,null,null,null,null,null,null,null,null,null,null,null,null,null,null,null,null,null,null,null,null,null,null,null,null,null,null,null,null,null,null,null,null,null,null,null,null,null,null,null,null,null,null,null,null,null,null,null,null,null,null,null,null,null,null,null,null,null,null,null,null,null,null,null,null,null,null,null,null,null,null,null,null,null,null,null,null,null,null,null,null,null,null,null,null,null,null,null,null,null,null,null,null,null,null,null,null,null,null,null,null,null,null,null,null,null,null,null,null,null,null,null,null,null,null,null,null,null,null,null,null,null,null,null,null,null,null,null,null,null,null,null,null,null,null,null,null,null,null,null,null,null,null,null,null,null,null,null,null,null,null,null,null,null,null,null,null,null,null,null,null,null,null,null,null,null,null,null,null,null,null,null,null,null,null,null,null,null,null,null,null,null,null,null,null,null,null,null,null,null,null,null,null,null,null,null,null,null,null,null,null,null,null,null,null,null,null,null,null,null,null,null,null,null,null,null,null,null,null,null,null,null,null,null,null,null,null,null,null,null,null,null,null,null,null,null,null,null,null,null,null,null,null,null,null,null,null,null,null,null,null,null,null,null,null,null,null,null,null,null,null,null,null,null,null,null,null,null,null,null,null,null,null,null,null,null,null,null,null,null,null,null,null,null,null,null,null,null,null,null,null,null,null,null,null,null,null,null,null,null,null,null,null,null,null,null,null,null,null,null,null,null,null,null,null,null,null,null,null,null,null,null,null,null,null,null,null,null,null,null,null,null,null,null,null,null,null,null,null,null,null,null,null,null,null,null,null,null,null,null,null,null,null,null,null,null,null,null,null,null,null,null,null,null,null,null,null,null,null,null,null,null,null,null,null,null,null,null,null,null,null,null,null,null,null,null,null,null,null,null,null,null,null,null,null,null,null,null,null,null,null,null,null,null,null,null,null,null,null,null,null,null,null,null,null,null,null,null,null,null,null,null,null,null,null,null,null,null,null,null,null,null,null,null,null,null,null,null,null,null,null,null,null,null,null,null,null,null,null,null,null,null,null,null,null,null,null,null,null,null,null,null,null,null,null,null,null,null,null,null,null,null,null,null,null,null,null,null,null,null,null,null,null,null,null,null,null,null,null,null,null,null,null,null,null,null,null,null,null,null,null,null,null,null,null,null,null,null,null,null,null,null,null,null,null,null,null,null,null,null,null,null,null,null,null,null,null,null,null,null,null,null,null,null,null,null,null,null,null,null,null,null,null,null,null,null,null,null,null,null,null,null,null,null,null,null,null,null,null,null,null,null,null,null,null,null,null,null,null,null,null,null,null,null,null,null,null,null,null,null,null,null,null,null,null,null,null,null,null,null,null,null,null,null,17]
[]
[null,"Project Data",null,null,null,null,null,null,"Base Selection"]
["Project Name",null,null,null,null,null,"Shapeair VAV Model",null,"TU"]
["Consultant",null,null,null,null,null,"Max Inlet Velocity m/s",null,9]
["Contractor",null,null,null,null,null,"VAV Turn Down %",null,50]
["Job Ref/#",null,null,null,null,null,"Reheat",null,"-"]
["Shapeair Reference"]
[]
["VAV Terminal Reference/Schedule/Location"]
["Input 1","Input 2","Input 3","Input 4","Ref#","VAV Terminal","VAV Model","Quantity","Inlet Velocity (m/s)","VAV Turn Down %","Airflow Max (l/s)","Airflow Min (l/s)","Reheat System","Reheat (kW)"]
["VAV",null,null,null,1,{"$f":"IF(AND(B12=\"\",C12=\"\",D12=\"\"),A12,A12&IF(B12<>\"\",\"-\"&B12,\"\")&IF(C12<>\"\",\"-\"&C12,\"\")&IF(D12<>\"\",\"-\"&D12,\"\")&\"-\"&E12)","v":"VAV"},"TU",1,9,50,null,null,{"$f":"$I$7","v":"-"}]
["VAV",null,null,null,2,"VAV","TU",1,9,50,null,null,"-"]
["VAV",null,null,null,3,"VAV","TU",1,9,50,null,null,"-"]
["VAV",null,null,null,4,"VAV","TU",1,9,50,null,null,"-"]
["VAV",null,null,null,5,"VAV","TU",1,9,50,null,null,"-"]
["VAV",null,null,null,6,"VAV","TU",1,9,50,null,null,"-"]
["VAV",null,null,null,7,"VAV","TU",1,9,50,null,null,"-"]
["VAV",null,null,null,8,"VAV","TU",1,9,50,null,null,"-"]
["VAV",null,null,null,9,"VAV","TU",1,9,50,null,null,"-"]
["VAV",null,null,null,10,"VAV","TU",1,9,50,null,null,"-"]
["VAV",null,null,null,11,"VAV","TU",1,9,50,null,null,"-"]
["VAV",null,null,null,12,"VAV","TU",1,9,50,null,null,"-"]
["VAV",null,null,null,13,"VAV","TU",1,9,50,null,null,"-"]
["VAV",null,null,null,14,"VAV","TU",1,9,50,null,null,"-"]
["VAV",null,null,null,15,"VAV","TU",1,9,50,null,null,"-"]
["VAV",null,null,null,16,"VAV","TU",1,9,50,null,null,"-"]
["VAV",null,null,null,17,"VAV","TU",1,9,50,null,null,"-"]
["VAV",null,null,null,18,"VAV","TU",1,9,50,null,null,"-"]
["VAV",null,null,null,19,"VAV","TU",1,9,50,null,null,"-"]
["VAV",null,null,null,20,"VAV","TU",1,9,50,null,null,"-"]
["VAV",null,null,null,21,"VAV","TU",1,9,50,null,null,"-"]
["VAV",null,null,null,22,"VAV","TU",1,9,50,null,null,"-"]
["VAV",null,null,null,23,"VAV","TU",1,9,50,null,null,"-"]
["VAV",null,null,null,24,"VAV","TU",1,9,50,null,null,"-"]
["VAV",null,null,null,25,"VAV","TU",1,9,50,null,null,"-"]
["VAV",null,null,null,26,"VAV","TU",1,9,50,null,null,"-"]
["VAV",null,null,null,27,"VAV","TU",1,9,50,null,null,"-"]
["VAV",null,null,null,28,"VAV","TU",1,9,50,null,null,"-"]
["VAV",null,null,null,29,"VAV","TU",1,9,50,null,null,"-"]
["VAV",null,null,null,30,"VAV","TU",1,9,50,null,null,"-"]
["VAV",null,null,null,31,"VAV","TU",1,9,50,null,null,"-"]
["VAV",null,null,null,32,"VAV","TU",1,9,50,null,null,"-"]
["VAV",null,null,null,33,"VAV","TU",1,9,50,null,null,"-"]
["VAV",null,null,null,34,"VAV","TU",1,9,50,null,null,"-"]
["VAV",null,null,null,35,"VAV","TU",1,9,50,null,null,"-"]
["VAV",null,null,null,36,"VAV","TU",1,9,50,null,null,"-"]
["VAV",null,null,null,37,"VAV","TU",1,9,50,null,null,"-"]
["VAV",null,null,null,38,"VAV","TU",1,9,50,null,null,"-"]
["VAV",null,null,null,39,"VAV","TU",1,9,50,null,null,"-"]
["VAV",null,null,null,40,"VAV","TU",1,9,50,null,null,"-"]
["VAV",null,null,null,41,"VAV","TU",1,9,50,null,null,"-"]
["VAV",null,null,null,42,"VAV","TU",1,9,50,null,null,"-"]
["VAV",null,null,null,43,"VAV","TU",1,9,50,null,null,"-"]
["VAV",null,null,null,44,"VAV","TU",1,9,50,null,null,"-"]
["VAV",null,null,null,45,"VAV","TU",1,9,50,null,null,"-"]
["VAV",null,null,null,46,"VAV","TU",1,9,50,null,null,"-"]
["VAV",null,null,null,47,"VAV","TU",1,9,50,null,null,"-"]
["VAV",null,null,null,48,"VAV","TU",1,9,50,null,null,"-"]
["VAV",null,null,null,49,"VAV","TU",1,9,50,null,null,"-"]
["VAV",null,null,null,50,"VAV","TU",1,9,50,null,null,"-"]
["VAV",null,null,null,51,"VAV","TU",1,9,50,null,null,"-"]
["VAV",null,null,null,52,"VAV","TU",1,9,50,null,null,"-"]
["VAV",null,null,null,53,"VAV","TU",1,9,50,null,null,"-"]
["VAV",null,null,null,54,"VAV","TU",1,9,50,null,null,"-"]
["VAV",null,null,null,55,"VAV","TU",1,9,50,null,null,"-"]
["VAV",null,null,null,56,"VAV","TU",1,9,50,null,null,"-"]
["VAV",null,null,null,57,"VAV","TU",1,9,50,null,null,"-"]
["VAV",null,null,null,58,"VAV","TU",1,9,50,null,null,"-"]
["VAV",null,null,null,59,"VAV","TU",1,9,50,null,null,"-"]
["VAV",null,null,null,60,"VAV","TU",1,9,50,null,null,"-"]
["VAV",null,null,null,61,"VAV","TU",1,9,50,null,null,"-"]
["VAV",null,null,null,62,"VAV","TU",1,9,50,null,null,"-"]
["VAV",null,null,null,63,"VAV","TU",1,9,50,null,null,"-"]
["VAV",null,null,null,64,"VAV","TU",1,9,50,null,null,"-"]
["VAV",null,null,null,65,{"$f":"IF(AND(B76=\"\",C76=\"\",D76=\"\"),A76,A76&IF(B76<>\"\",\"-\"&B76,\"\")&IF(C76<>\"\",\"-\"&C76,\"\")&IF(D76<>\"\",\"-\"&D76,\"\")&\"-\"&E76)","v":"VAV"},"TU",1,9,50,null,null,{"$f":"$I$7","v":"-"}]
["VAV",null,null,null,66,"VAV","TU",1,9,50,null,null,"-"]
["VAV",null,null,null,67,"VAV","TU",1,9,50,null,null,"-"]
["VAV",null,null,null,68,"VAV","TU",1,9,50,null,null,"-"]
["VAV",null,null,null,69,"VAV","TU",1,9,50,null,null,"-"]
["VAV",null,null,null,70,"VAV","TU",1,9,50,null,null,"-"]
["VAV",null,null,null,71,"VAV","TU",1,9,50,null,null,"-"]
["VAV",null,null,null,72,"VAV","TU",1,9,50,null,null,"-"]
["VAV",null,null,null,73,"VAV","TU",1,9,50,null,null,"-"]
["VAV",null,null,null,74,"VAV","TU",1,9,50,null,null,"-"]
["VAV",null,null,null,75,"VAV","TU",1,9,50,null,null,"-"]
["VAV",null,null,null,76,"VAV","TU",1,9,50,null,null,"-"]
["VAV",null,null,null,77,"VAV","TU",1,9,50,null,null,"-"]
["VAV",null,null,null,78,"VAV","TU",1,9,50,null,null,"-"]
["VAV",null,null,null,79,"VAV","TU",1,9,50,null,null,"-"]
["VAV",null,null,null,80,"VAV","TU",1,9,50,null,null,"-"]
["VAV",null,null,null,81,"VAV","TU",1,9,50,null,null,"-"]
["VAV",null,null,null,82,"VAV","TU",1,9,50,null,null,"-"]
["VAV",null,null,null,83,"VAV","TU",1,9,50,null,null,"-"]
["VAV",null,null,null,84,"VAV","TU",1,9,50,null,null,"-"]
["VAV",null,null,null,85,"VAV","TU",1,9,50,null,null,"-"]
["VAV",null,null,null,86,"VAV","TU",1,9,50,null,null,"-"]
["VAV",null,null,null,87,"VAV","TU",1,9,50,null,null,"-"]
["VAV",null,null,null,88,"VAV","TU",1,9,50,null,null,"-"]
["VAV",null,null,null,89,"VAV","TU",1,9,50,null,null,"-"]
["VAV",null,null,null,90,"VAV","TU",1,9,50,null,null,"-"]
["VAV",null,null,null,91,"VAV","TU",1,9,50,null,null,"-"]
["VAV",null,null,null,92,"VAV","TU",1,9,50,null,null,"-"]
["VAV",null,null,null,93,"VAV","TU",1,9,50,null,null,"-"]
["VAV",null,null,null,94,"VAV","TU",1,9,50,null,null,"-"]
["VAV",null,null,null,95,"VAV","TU",1,9,50,null,null,"-"]
["VAV",null,null,null,96,"VAV","TU",1,9,50,null,null,"-"]
["VAV",null,null,null,97,"VAV","TU",1,9,50,null,null,"-"]
["VAV",null,null,null,98,"VAV","TU",1,9,50,null,null,"-"]
["VAV",null,null,null,99,"VAV","TU",1,9,50,null,null,"-"]
["VAV",null,null,null,100,"VAV","TU",1,9,50,null,null,"-"]
["VAV",null,null,null,101,"VAV","TU",1,9,50,null,null,"-"]
["VAV",null,null,null,102,"VAV","TU",1,9,50,null,null,"-"]
["VAV",null,null,null,103,"VAV","TU",1,9,50,null,null,"-"]
["VAV",null,null,null,104,"VAV","TU",1,9,50,null,null,"-"]
["VAV",null,null,null,105,"VAV","TU",1,9,50,null,null,"-"]
["VAV",null,null,null,106,"VAV","TU",1,9,50,null,null,"-"]
["VAV",null,null,null,107,"VAV","TU",1,9,50,null,null,"-"]
["VAV",null,null,null,108,"VAV","TU",1,9,50,null,null,"-"]
["VAV",null,null,null,109,"VAV","TU",1,9,50,null,null,"-"]
["VAV",null,null,null,110,"VAV","TU",1,9,50,null,null,"-"]
["VAV",null,null,null,111,"VAV","TU",1,9,50,null,null,"-"]
["VAV",null,null,null,112,"VAV","TU",1,9,50,null,null,"-"]
["VAV",null,null,null,113,"VAV","TU",1,9,50,null,null,"-"]
["VAV",null,null,null,114,"VAV","TU",1,9,50,null,null,"-"]
["VAV",null,null,null,115,"VAV","TU",1,9,50,null,null,"-"]
["VAV",null,null,null,116,"VAV","TU",1,9,50,null,null,"-"]
["VAV",null,null,null,117,"VAV","TU",1,9,50,null,null,"-"]
["VAV",null,null,null,118,"VAV","TU",1,9,50,null,null,"-"]
["VAV",null,null,null,119,"VAV","TU",1,9,50,null,null,"-"]
["VAV",null,null,null,120,"VAV","TU",1,9,50,null,null,"-"]
["VAV",null,null,null,121,"VAV","TU",1,9,50,null,null,"-"]
["VAV",null,null,null,122,"VAV","TU",1,9,50,null,null,"-"]
["VAV",null,null,null,123,"VAV","TU",1,9,50,null,null,"-"]
["VAV",null,null,null,124,"VAV","TU",1,9,50,null,null,"-"]
["VAV",null,null,null,125,"VAV","TU",1,9,50,null,null,"-"]
["VAV",null,null,null,126,"VAV","TU",1,9,50,null,null,"-"]
["VAV",null,null,null,127,"VAV","TU",1,9,50,null,null,"-"]
["VAV",null,null,null,128,"VAV","TU",1,9,50,null,null,"-"]
["VAV",null,null,null,129,{"$f":"IF(AND(B140=\"\",C140=\"\",D140=\"\"),A140,A140&IF(B140<>\"\",\"-\"&B140,\"\")&IF(C140<>\"\",\"-\"&C140,\"\")&IF(D140<>\"\",\"-\"&D140,\"\")&\"-\"&E140)","v":"VAV"},"TU",1,9,50,null,null,{"$f":"$I$7","v":"-"}]
["VAV",null,null,null,130,"VAV","TU",1,9,50,null,null,"-"]
["VAV",null,null,null,131,"VAV","TU",1,9,50,null,null,"-"]
["VAV",null,null,null,132,"VAV","TU",1,9,50,null,null,"-"]
["VAV",null,null,null,133,"VAV","TU",1,9,50,null,null,"-"]
["VAV",null,null,null,134,"VAV","TU",1,9,50,null,null,"-"]
["VAV",null,null,null,135,"VAV","TU",1,9,50,null,null,"-"]
["VAV",null,null,null,136,"VAV","TU",1,9,50,null,null,"-"]
["VAV",null,null,null,137,"VAV","TU",1,9,50,null,null,"-"]
["VAV",null,null,null,138,"VAV","TU",1,9,50,null,null,"-"]
["VAV",null,null,null,139,"VAV","TU",1,9,50,null,null,"-"]
["VAV",null,null,null,140,"VAV","TU",1,9,50,null,null,"-"]
["VAV",null,null,null,141,"VAV","TU",1,9,50,null,null,"-"]
["VAV",null,null,null,142,"VAV","TU",1,9,50,null,null,"-"]
["VAV",null,null,null,143,"VAV","TU",1,9,50,null,null,"-"]
["VAV",null,null,null,144,"VAV","TU",1,9,50,null,null,"-"]
["VAV",null,null,null,145,"VAV","TU",1,9,50,null,null,"-"]
["VAV",null,null,null,146,"VAV","TU",1,9,50,null,null,"-"]
["VAV",null,null,null,147,"VAV","TU",1,9,50,null,null,"-"]
["VAV",null,null,null,148,"VAV","TU",1,9,50,null,null,"-"]
["VAV",null,null,null,149,"VAV","TU",1,9,50,null,null,"-"]
["VAV",null,null,null,150,"VAV","TU",1,9,50,null,null,"-"]
["VAV",null,null,null,151,"VAV","TU",1,9,50,null,null,"-"]
["VAV",null,null,null,152,"VAV","TU",1,9,50,null,null,"-"]
["VAV",null,null,null,153,"VAV","TU",1,9,50,null,null,"-"]
["VAV",null,null,null,154,"VAV","TU",1,9,50,null,null,"-"]
["VAV",null,null,null,155,"VAV","TU",1,9,50,null,null,"-"]
["VAV",null,null,null,156,"VAV","TU",1,9,50,null,null,"-"]
["VAV",null,null,null,157,"VAV","TU",1,9,50,null,null,"-"]
["VAV",null,null,null,158,"VAV","TU",1,9,50,null,null,"-"]
["VAV",null,null,null,159,"VAV","TU",1,9,50,null,null,"-"]
["VAV",null,null,null,160,"VAV","TU",1,9,50,null,null,"-"]
["VAV",null,null,null,161,"VAV","TU",1,9,50,null,null,"-"]
["VAV",null,null,null,162,"VAV","TU",1,9,50,null,null,"-"]
["VAV",null,null,null,163,"VAV","TU",1,9,50,null,null,"-"]
["VAV",null,null,null,164,"VAV","TU",1,9,50,null,null,"-"]
["VAV",null,null,null,165,"VAV","TU",1,9,50,null,null,"-"]
["VAV",null,null,null,166,"VAV","TU",1,9,50,null,null,"-"]
["VAV",null,null,null,167,"VAV","TU",1,9,50,null,null,"-"]
["VAV",null,null,null,168,"VAV","TU",1,9,50,null,null,"-"]
["VAV",null,null,null,169,"VAV","TU",1,9,50,null,null,"-"]
["VAV",null,null,null,170,"VAV","TU",1,9,50,null,null,"-"]
["VAV",null,null,null,171,"VAV","TU",1,9,50,null,null,"-"]
["VAV",null,null,null,172,"VAV","TU",1,9,50,null,null,"-"]
["VAV",null,null,null,173,"VAV","TU",1,9,50,null,null,"-"]
["VAV",null,null,null,174,"VAV","TU",1,9,50,null,null,"-"]
["VAV",null,null,null,175,"VAV","TU",1,9,50,null,null,"-"]
["VAV",null,null,null,176,"VAV","TU",1,9,50,null,null,"-"]
["VAV",null,null,null,177,"VAV","TU",1,9,50,null,null,"-"]
["VAV",null,null,null,178,"VAV","TU",1,9,50,null,null,"-"]
["VAV",null,null,null,179,"VAV","TU",1,9,50,null,null,"-"]
["VAV",null,null,null,180,"VAV","TU",1,9,50,null,null,"-"]
["VAV",null,null,null,181,"VAV","TU",1,9,50,null,null,"-"]
["VAV",null,null,null,182,"VAV","TU",1,9,50,null,null,"-"]
["VAV",null,null,null,183,"VAV","TU",1,9,50,null,null,"-"]
["VAV",null,null,null,184,"VAV","TU",1,9,50,null,null,"-"]
["VAV",null,null,null,185,"VAV","TU",1,9,50,null,null,"-"]
["VAV",null,null,null,186,"VAV","TU",1,9,50,null,null,"-"]
["VAV",null,null,null,187,"VAV","TU",1,9,50,null,null,"-"]
["VAV",null,null,null,188,"VAV","TU",1,9,50,null,null,"-"]
["VAV",null,null,null,189,"VAV","TU",1,9,50,null,null,"-"]
["VAV",null,null,null,190,"VAV","TU",1,9,50,null,null,"-"]
["VAV",null,null,null,191,"VAV","TU",1,9,50,null,null,"-"]
["VAV",null,null,null,192,"VAV","TU",1,9,50,null,null,"-"]
["VAV",null,null,null,193,{"$f":"IF(AND(B204=\"\",C204=\"\",D204=\"\"),A204,A204&IF(B204<>\"\",\"-\"&B204,\"\")&IF(C204<>\"\",\"-\"&C204,\"\")&IF(D204<>\"\",\"-\"&D204,\"\")&\"-\"&E204)","v":"VAV"},"TU",1,9,50,null,null,{"$f":"$I$7","v":"-"}]
["VAV",null,null,null,194,"VAV","TU",1,9,50,null,null,"-"]
["VAV",null,null,null,195,"VAV","TU",1,9,50,null,null,"-"]
["VAV",null,null,null,196,"VAV","TU",1,9,50,null,null,"-"]
["VAV",null,null,null,197,"VAV","TU",1,9,50,null,null,"-"]
["VAV",null,null,null,198,"VAV","TU",1,9,50,null,null,"-"]
["VAV",null,null,null,199,"VAV","TU",1,9,50,null,null,"-"]
["VAV",null,null,null,200,"VAV","TU",1,9,50,null,null,"-"]
["VAV",null,null,null,201,"VAV","TU",1,9,50,null,null,"-"]
["VAV",null,null,null,202,"VAV","TU",1,9,50,null,null,"-"]
["VAV",null,null,null,203,"VAV","TU",1,9,50,null,null,"-"]
["VAV",null,null,null,204,"VAV","TU",1,9,50,null,null,"-"]
["VAV",null,null,null,205,"VAV","TU",1,9,50,null,null,"-"]
["VAV",null,null,null,206,"VAV","TU",1,9,50,null,null,"-"]
["VAV",null,null,null,207,"VAV","TU",1,9,50,null,null,"-"]
["VAV",null,null,null,208,"VAV","TU",1,9,50,null,null,"-"]
["VAV",null,null,null,209,"VAV","TU",1,9,50,null,null,"-"]
["VAV",null,null,null,210,"VAV","TU",1,9,50,null,null,"-"]
["VAV",null,null,null,211,"VAV","TU",1,9,50,null,null,"-"]
["VAV",null,null,null,212,"VAV","TU",1,9,50,null,null,"-"]
["VAV",null,null,null,213,"VAV","TU",1,9,50,null,null,"-"]
["VAV",null,null,null,214,"VAV","TU",1,9,50,null,null,"-"]
["VAV",null,null,null,215,"VAV","TU",1,9,50,null,null,"-"]
["VAV",null,null,null,216,"VAV","TU",1,9,50,null,null,"-"]
["VAV",null,null,null,217,"VAV","TU",1,9,50,null,null,"-"]
["VAV",null,null,null,218,"VAV","TU",1,9,50,null,null,"-"]
["VAV",null,null,null,219,"VAV","TU",1,9,50,null,null,"-"]
["VAV",null,null,null,220,"VAV","TU",1,9,50,null,null,"-"]
["VAV",null,null,null,221,"VAV","TU",1,9,50,null,null,"-"]
["VAV",null,null,null,222,"VAV","TU",1,9,50,null,null,"-"]
["VAV",null,null,null,223,"VAV","TU",1,9,50,null,null,"-"]
["VAV",null,null,null,224,"VAV","TU",1,9,50,null,null,"-"]
["VAV",null,null,null,225,"VAV","TU",1,9,50,null,null,"-"]
["VAV",null,null,null,226,"VAV","TU",1,9,50,null,null,"-"]
["VAV",null,null,null,227,"VAV","TU",1,9,50,null,null,"-"]
["VAV",null,null,null,228,"VAV","TU",1,9,50,null,null,"-"]
["VAV",null,null,null,229,"VAV","TU",1,9,50,null,null,"-"]
["VAV",null,null,null,230,"VAV","TU",1,9,50,null,null,"-"]
["VAV",null,null,null,231,"VAV","TU",1,9,50,null,null,"-"]
["VAV",null,null,null,232,"VAV","TU",1,9,50,null,null,"-"]
["VAV",null,null,null,233,"VAV","TU",1,9,50,null,null,"-"]
["VAV",null,null,null,234,"VAV","TU",1,9,50,null,null,"-"]
["VAV",null,null,null,235,"VAV","TU",1,9,50,null,null,"-"]
["VAV",null,null,null,236,"VAV","TU",1,9,50,null,null,"-"]
["VAV",null,null,null,237,"VAV","TU",1,9,50,null,null,"-"]
["VAV",null,null,null,238,"VAV","TU",1,9,50,null,null,"-"]
["VAV",null,null,null,239,"VAV","TU",1,9,50,null,null,"-"]
["VAV",null,null,null,240,"VAV","TU",1,9,50,null,null,"-"]
["VAV",null,null,null,241,"VAV","TU",1,9,50,null,null,"-"]
["VAV",null,null,null,242,"VAV","TU",1,9,50,null,null,"-"]
["VAV",null,null,null,243,"VAV","TU",1,9,50,null,null,"-"]
["VAV",null,null,null,244,"VAV","TU",1,9,50,null,null,"-"]
["VAV",null,null,null,245,"VAV","TU",1,9,50,null,null,"-"]
["VAV",null,null,null,246,"VAV","TU",1,9,50,null,null,"-"]
["VAV",null,null,null,247,"VAV","TU",1,9,50,null,null,"-"]
["VAV",null,null,null,248,"VAV","TU",1,9,50,null,null,"-"]
["VAV",null,null,null,249,"VAV","TU",1,9,50,null,null,"-"]
["VAV",null,null,null,250,"VAV","TU",1,9,50,null,null,"-"]
["VAV",null,null,null,251,"VAV","TU",1,9,50,null,null,"-"]
["VAV",null,null,null,252,"VAV","TU",1,9,50,null,null,"-"]
["VAV",null,null,null,253,"VAV","TU",1,9,50,null,null,"-"]
["VAV",null,null,null,254,"VAV","TU",1,9,50,null,null,"-"]
["VAV",null,null,null,255,"VAV","TU",1,9,50,null,null,"-"]
["VAV",null,null,null,256,"VAV","TU",1,9,50,null,null,"-"]
["VAV",null,null,null,257,{"$f":"IF(AND(B268=\"\",C268=\"\",D268=\"\"),A268,A268&IF(B268<>\"\",\"-\"&B268,\"\")&IF(C268<>\"\",\"-\"&C268,\"\")&IF(D268<>\"\",\"-\"&D268,\"\")&\"-\"&E268)","v":"VAV"},"TU",1,9,50,null,null,{"$f":"$I$7","v":"-"}]
["VAV",null,null,null,258,"VAV","TU",1,9,50,null,null,"-"]
["VAV",null,null,null,259,"VAV","TU",1,9,50,null,null,"-"]
["VAV",null,null,null,260,"VAV","TU",1,9,50,null,null,"-"]
["VAV",null,null,null,261,"VAV","TU",1,9,50,null,null,"-"]
["VAV",null,null,null,262,"VAV","TU",1,9,50,null,null,"-"]
["VAV",null,null,null,263,"VAV","TU",1,9,50,null,null,"-"]
["VAV",null,null,null,264,"VAV","TU",1,9,50,null,null,"-"]
["VAV",null,null,null,265,"VAV","TU",1,9,50,null,null,"-"]
["VAV",null,null,null,266,"VAV","TU",1,9,50,null,null,"-"]
["VAV",null,null,null,267,"VAV","TU",1,9,50,null,null,"-"]
["VAV",null,null,null,268,"VAV","TU",1,9,50,null,null,"-"]
["VAV",null,null,null,269,"VAV","TU",1,9,50,null,null,"-"]
["VAV",null,null,null,270,"VAV","TU",1,9,50,null,null,"-"]
["VAV",null,null,null,271,"VAV","TU",1,9,50,null,null,"-"]
["VAV",null,null,null,272,"VAV","TU",1,9,50,null,null,"-"]
["VAV",null,null,null,273,"VAV","TU",1,9,50,null,null,"-"]
["VAV",null,null,null,274,"VAV","TU",1,9,50,null,null,"-"]
["VAV",null,null,null,275,"VAV","TU",1,9,50,null,null,"-"]
["VAV",null,null,null,276,"VAV","TU",1,9,50,null,null,"-"]
["VAV",null,null,null,277,"VAV","TU",1,9,50,null,null,"-"]
["VAV",null,null,null,278,"VAV","TU",1,9,50,null,null,"-"]
["VAV",null,null,null,279,"VAV","TU",1,9,50,null,null,"-"]
["VAV",null,null,null,280,"VAV","TU",1,9,50,null,null,"-"]
["VAV",null,null,null,281,"VAV","TU",1,9,50,null,null,"-"]
["VAV",null,null,null,282,"VAV","TU",1,9,50,null,null,"-"]
["VAV",null,null,null,283,"VAV","TU",1,9,50,null,null,"-"]
["VAV",null,null,null,284,"VAV","TU",1,9,50,null,null,"-"]
["VAV",null,null,null,285,"VAV","TU",1,9,50,null,null,"-"]
["VAV",null,null,null,286,"VAV","TU",1,9,50,null,null,"-"]
["VAV",null,null,null,287,"VAV","TU",1,9,50,null,null,"-"]
["VAV",null,null,null,288,"VAV","TU",1,9,50,null,null,"-"]
["VAV",null,null,null,289,"VAV","TU",1,9,50,null,null,"-"]
["VAV",null,null,null,290,"VAV","TU",1,9,50,null,null,"-"]
["VAV",null,null,null,291,"VAV","TU",1,9,50,null,null,"-"]
["VAV",null,null,null,292,"VAV","TU",1,9,50,null,null,"-"]
["VAV",null,null,null,293,"VAV","TU",1,9,50,null,null,"-"]
["VAV",null,null,null,294,"VAV","TU",1,9,50,null,null,"-"]
["VAV",null,null,null,295,"VAV","TU",1,9,50,null,null,"-"]
["VAV",null,null,null,296,"VAV","TU",1,9,50,null,null,"-"]
["VAV",null,null,null,297,"VAV","TU",1,9,50,null,null,"-"]
["VAV",null,null,null,298,"VAV","TU",1,9,50,null,null,"-"]
["VAV",null,null,null,299,"VAV","TU",1,9,50,null,null,"-"]
["VAV",null,null,null,300,"VAV","TU",1,9,50,null,null,"-"]
["VAV",null,null,null,301,"VAV","TU",1,9,50,null,null,"-"]
["VAV",null,null,null,302,"VAV","TU",1,9,50,null,null,"-"]
["VAV",null,null,null,303,"VAV","TU",1,9,50,null,null,"-"]
["VAV",null,null,null,304,"VAV","TU",1,9,50,null,null,"-"]
["VAV",null,null,null,305,"VAV","TU",1,9,50,null,null,"-"]
["VAV",null,null,null,306,"VAV","TU",1,9,50,null,null,"-"]
["VAV",null,null,null,307,"VAV","TU",1,9,50,null,null,"-"]
["VAV",null,null,null,308,"VAV","TU",1,9,50,null,null,"-"]
["VAV",null,null,null,309,"VAV","TU",1,9,50,null,null,"-"]
["VAV",null,null,null,310,"VAV","TU",1,9,50,null,null,"-"]
["VAV",null,null,null,311,"VAV","TU",1,9,50,null,null,"-"]
["VAV",null,null,null,312,"VAV","TU",1,9,50,null,null,"-"]
["VAV",null,null,null,313,"VAV","TU",1,9,50,null,null,"-"]
["VAV",null,null,null,314,"VAV","TU",1,9,50,null,null,"-"]
["VAV",null,null,null,315,"VAV","TU",1,9,50,null,null,"-"]
["VAV",null,null,null,316,"VAV","TU",1,9,50,null,null,"-"]
["VAV",null,null,null,317,"VAV","TU",1,9,50,null,null,"-"]
["VAV",null,null,null,318,"VAV","TU",1,9,50,null,null,"-"]
["VAV",null,null,null,319,"VAV","TU",1,9,50,null,null,"-"]
["VAV",null,null,null,320,"VAV","TU",1,9,50,null,null,"-"]
["VAV",null,null,null,321,{"$f":"IF(AND(B332=\"\",C332=\"\",D332=\"\"),A332,A332&IF(B332<>\"\",\"-\"&B332,\"\")&IF(C332<>\"\",\"-\"&C332,\"\")&IF(D332<>\"\",\"-\"&D332,\"\")&\"-\"&E332)","v":"VAV"},"TU",1,9,50,null,null,{"$f":"$I$7","v":"-"}]
["VAV",null,null,null,322,"VAV","TU",1,9,50,null,null,"-"]
["VAV",null,null,null,323,"VAV","TU",1,9,50,null,null,"-"]
["VAV",null,null,null,324,"VAV","TU",1,9,50,null,null,"-"]
["VAV",null,null,null,325,"VAV","TU",1,9,50,null,null,"-"]
["VAV",null,null,null,326,"VAV","TU",1,9,50,null,null,"-"]
["VAV",null,null,null,327,"VAV","TU",1,9,50,null,null,"-"]
["VAV",null,null,null,328,"VAV","TU",1,9,50,null,null,"-"]
["VAV",null,null,null,329,"VAV","TU",1,9,50,null,null,"-"]
["VAV",null,null,null,330,"VAV","TU",1,9,50,null,null,"-"]
["VAV",null,null,null,331,"VAV","TU",1,9,50,null,null,"-"]
["VAV",null,null,null,332,"VAV","TU",1,9,50,null,null,"-"]
["VAV",null,null,null,333,"VAV","TU",1,9,50,null,null,"-"]
["VAV",null,null,null,334,"VAV","TU",1,9,50,null,null,"-"]
["VAV",null,null,null,335,"VAV","TU",1,9,50,null,null,"-"]
["VAV",null,null,null,336,"VAV","TU",1,9,50,null,null,"-"]
["VAV",null,null,null,337,"VAV","TU",1,9,50,null,null,"-"]
["VAV",null,null,null,338,"VAV","TU",1,9,50,null,null,"-"]
["VAV",null,null,null,339,"VAV","TU",1,9,50,null,null,"-"]
["VAV",null,null,null,340,"VAV","TU",1,9,50,null,null,"-"]
["VAV",null,null,null,341,"VAV","TU",1,9,50,null,null,"-"]
["VAV",null,null,null,342,"VAV","TU",1,9,50,null,null,"-"]
["VAV",null,null,null,343,"VAV","TU",1,9,50,null,null,"-"]
["VAV",null,null,null,344,"VAV","TU",1,9,50,null,null,"-"]
["VAV",null,null,null,345,"VAV","TU",1,9,50,null,null,"-"]
["VAV",null,null,null,346,"VAV","TU",1,9,50,null,null,"-"]
["VAV",null,null,null,347,"VAV","TU",1,9,50,null,null,"-"]
["VAV",null,null,null,348,"VAV","TU",1,9,50,null,null,"-"]
["VAV",null,null,null,349,"VAV","TU",1,9,50,null,null,"-"]
["VAV",null,null,null,350,"VAV","TU",1,9,50,null,null,"-"]
["VAV",null,null,null,351,"VAV","TU",1,9,50,null,null,"-"]
["VAV",null,null,null,352,"VAV","TU",1,9,50,null,null,"-"]
["VAV",null,null,null,353,"VAV","TU",1,9,50,null,null,"-"]
["VAV",null,null,null,354,"VAV","TU",1,9,50,null,null,"-"]
["VAV",null,null,null,355,"VAV","TU",1,9,50,null,null,"-"]
["VAV",null,null,null,356,"VAV","TU",1,9,50,null,null,"-"]
["VAV",null,null,null,357,"VAV","TU",1,9,50,null,null,"-"]
["VAV",null,null,null,358,"VAV","TU",1,9,50,null,null,"-"]
["VAV",null,null,null,359,"VAV","TU",1,9,50,null,null,"-"]
["VAV",null,null,null,360,"VAV","TU",1,9,50,null,null,"-"]
["VAV",null,null,null,361,"VAV","TU",1,9,50,null,null,"-"]
["VAV",null,null,null,362,"VAV","TU",1,9,50,null,null,"-"]
["VAV",null,null,null,363,"VAV","TU",1,9,50,null,null,"-"]
["VAV",null,null,null,364,"VAV","TU",1,9,50,null,null,"-"]
["VAV",null,null,null,365,"VAV","TU",1,9,50,null,null,"-"]
["VAV",null,null,null,366,"VAV","TU",1,9,50,null,null,"-"]
["VAV",null,null,null,367,"VAV","TU",1,9,50,null,null,"-"]
["VAV",null,null,null,368,"VAV","TU",1,9,50,null,null,"-"]
["VAV",null,null,null,369,"VAV","TU",1,9,50,null,null,"-"]
["VAV",null,null,null,370,"VAV","TU",1,9,50,null,null,"-"]
["VAV",null,null,null,371,"VAV","TU",1,9,50,null,null,"-"]
["VAV",null,null,null,372,"VAV","TU",1,9,50,null,null,"-"]
["VAV",null,null,null,373,"VAV","TU",1,9,50,null,null,"-"]
["VAV",null,null,null,374,"VAV","TU",1,9,50,null,null,"-"]
["VAV",null,null,null,375,"VAV","TU",1,9,50,null,null,"-"]
["VAV",null,null,null,376,"VAV","TU",1,9,50,null,null,"-"]
["VAV",null,null,null,377,"VAV","TU",1,9,50,null,null,"-"]
["VAV",null,null,null,378,"VAV","TU",1,9,50,null,null,"-"]
["VAV",null,null,null,379,"VAV","TU",1,9,50,null,null,"-"]
["VAV",null,null,null,380,"VAV","TU",1,9,50,null,null,"-"]
["VAV",null,null,null,381,"VAV","TU",1,9,50,null,null,"-"]
["VAV",null,null,null,382,"VAV","TU",1,9,50,null,null,"-"]
["VAV",null,null,null,383,"VAV","TU",1,9,50,null,null,"-"]
["VAV",null,null,null,384,"VAV","TU",1,9,50,null,null,"-"]
["VAV",null,null,null,385,{"$f":"IF(AND(B396=\"\",C396=\"\",D396=\"\"),A396,A396&IF(B396<>\"\",\"-\"&B396,\"\")&IF(C396<>\"\",\"-\"&C396,\"\")&IF(D396<>\"\",\"-\"&D396,\"\")&\"-\"&E396)","v":"VAV"},"TU",1,9,50,null,null,{"$f":"$I$7","v":"-"}]
["VAV",null,null,null,386,"VAV","TU",1,9,50,null,null,"-"]
["VAV",null,null,null,387,"VAV","TU",1,9,50,null,null,"-"]
["VAV",null,null,null,388,"VAV","TU",1,9,50,null,null,"-"]
["VAV",null,null,null,389,"VAV","TU",1,9,50,null,null,"-"]
["VAV",null,null,null,390,"VAV","TU",1,9,50,null,null,"-"]
["VAV",null,null,null,391,"VAV","TU",1,9,50,null,null,"-"]
["VAV",null,null,null,392,"VAV","TU",1,9,50,null,null,"-"]
["VAV",null,null,null,393,"VAV","TU",1,9,50,null,null,"-"]
["VAV",null,null,null,394,"VAV","TU",1,9,50,null,null,"-"]
["VAV",null,null,null,395,"VAV","TU",1,9,50,null,null,"-"]
["VAV",null,null,null,396,"VAV","TU",1,9,50,null,null,"-"]
["VAV",null,null,null,397,"VAV","TU",1,9,50,null,null,"-"]
["VAV",null,null,null,398,"VAV","TU",1,9,50,null,null,"-"]
["VAV",null,null,null,399,"VAV","TU",1,9,50,null,null,"-"]
["VAV",null,null,null,400,"VAV","TU",1,9,50,null,null,"-"]
["VAV",null,null,null,401,"VAV","TU",1,9,50,null,null,"-"]
["VAV",null,null,null,402,"VAV","TU",1,9,50,null,null,"-"]
["VAV",null,null,null,403,"VAV","TU",1,9,50,null,null,"-"]
["VAV",null,null,null,404,"VAV","TU",1,9,50,null,null,"-"]
["VAV",null,null,null,405,"VAV","TU",1,9,50,null,null,"-"]
["VAV",null,null,null,406,"VAV","TU",1,9,50,null,null,"-"]
["VAV",null,null,null,407,"VAV","TU",1,9,50,null,null,"-"]
["VAV",null,null,null,408,"VAV","TU",1,9,50,null,null,"-"]
["VAV",null,null,null,409,"VAV","TU",1,9,50,null,null,"-"]
["VAV",null,null,null,410,"VAV","TU",1,9,50,null,null,"-"]
["VAV",null,null,null,411,"VAV","TU",1,9,50,null,null,"-"]
["VAV",null,null,null,412,"VAV","TU",1,9,50,null,null,"-"]
["VAV",null,null,null,413,"VAV","TU",1,9,50,null,null,"-"]
["VAV",null,null,null,414,"VAV","TU",1,9,50,null,null,"-"]
["VAV",null,null,null,415,"VAV","TU",1,9,50,null,null,"-"]
["VAV",null,null,null,416,"VAV","TU",1,9,50,null,null,"-"]
["VAV",null,null,null,417,"VAV","TU",1,9,50,null,null,"-"]
["VAV",null,null,null,418,"VAV","TU",1,9,50,null,null,"-"]
["VAV",null,null,null,419,"VAV","TU",1,9,50,null,null,"-"]
["VAV",null,null,null,420,"VAV","TU",1,9,50,null,null,"-"]
["VAV",null,null,null,421,"VAV","TU",1,9,50,null,null,"-"]
["VAV",null,null,null,422,"VAV","TU",1,9,50,null,null,"-"]
["VAV",null,null,null,423,"VAV","TU",1,9,50,null,null,"-"]
["VAV",null,null,null,424,"VAV","TU",1,9,50,null,null,"-"]
["VAV",null,null,null,425,"VAV","TU",1,9,50,null,null,"-"]
["VAV",null,null,null,426,"VAV","TU",1,9,50,null,null,"-"]
["VAV",null,null,null,427,"VAV","TU",1,9,50,null,null,"-"]
["VAV",null,null,null,428,"VAV","TU",1,9,50,null,null,"-"]
["VAV",null,null,null,429,"VAV","TU",1,9,50,null,null,"-"]
["VAV",null,null,null,430,"VAV","TU",1,9,50,null,null,"-"]
["VAV",null,null,null,431,"VAV","TU",1,9,50,null,null,"-"]
["VAV",null,null,null,432,"VAV","TU",1,9,50,null,null,"-"]
["VAV",null,null,null,433,"VAV","TU",1,9,50,null,null,"-"]
["VAV",null,null,null,434,"VAV","TU",1,9,50,null,null,"-"]
["VAV",null,null,null,435,"VAV","TU",1,9,50,null,null,"-"]
["VAV",null,null,null,436,"VAV","TU",1,9,50,null,null,"-"]
["VAV",null,null,null,437,"VAV","TU",1,9,50,null,null,"-"]
["VAV",null,null,null,438,"VAV","TU",1,9,50,null,null,"-"]
["VAV",null,null,null,439,"VAV","TU",1,9,50,null,null,"-"]
["VAV",null,null,null,440,"VAV","TU",1,9,50,null,null,"-"]
["VAV",null,null,null,441,"VAV","TU",1,9,50,null,null,"-"]
["VAV",null,null,null,442,"VAV","TU",1,9,50,null,null,"-"]
["VAV",null,null,null,443,"VAV","TU",1,9,50,null,null,"-"]
["VAV",null,null,null,444,"VAV","TU",1,9,50,null,null,"-"]
["VAV",null,null,null,445,"VAV","TU",1,9,50,null,null,"-"]
["VAV",null,null,null,446,"VAV","TU",1,9,50,null,null,"-"]
["VAV",null,null,null,447,"VAV","TU",1,9,50,null,null,"-"]
["VAV",null,null,null,448,"VAV","TU",1,9,50,null,null,"-"]
["VAV",null,null,null,449,{"$f":"IF(AND(B460=\"\",C460=\"\",D460=\"\"),A460,A460&IF(B460<>\"\",\"-\"&B460,\"\")&IF(C460<>\"\",\"-\"&C460,\"\")&IF(D460<>\"\",\"-\"&D460,\"\")&\"-\"&E460)","v":"VAV"},"TU",1,9,50,null,null,{"$f":"$I$7","v":"-"}]
["VAV",null,null,null,450,"VAV","TU",1,9,50,null,null,"-"]
["VAV",null,null,null,451,"VAV","TU",1,9,50,null,null,"-"]
["VAV",null,null,null,452,"VAV","TU",1,9,50,null,null,"-"]
["VAV",null,null,null,453,"VAV","TU",1,9,50,null,null,"-"]
["VAV",null,null,null,454,"VAV","TU",1,9,50,null,null,"-"]
["VAV",null,null,null,455,"VAV","TU",1,9,50,null,null,"-"]
["VAV",null,null,null,456,"VAV","TU",1,9,50,null,null,"-"]
["VAV",null,null,null,457,"VAV","TU",1,9,50,null,null,"-"]
["VAV",null,null,null,458,"VAV","TU",1,9,50,null,null,"-"]
["VAV",null,null,null,459,"VAV","TU",1,9,50,null,null,"-"]
["VAV",null,null,null,460,"VAV","TU",1,9,50,null,null,"-"]
["VAV",null,null,null,461,"VAV","TU",1,9,50,null,null,"-"]
["VAV",null,null,null,462,"VAV","TU",1,9,50,null,null,"-"]
["VAV",null,null,null,463,"VAV","TU",1,9,50,null,null,"-"]
["VAV",null,null,null,464,"VAV","TU",1,9,50,null,null,"-"]
["VAV",null,null,null,465,"VAV","TU",1,9,50,null,null,"-"]
["VAV",null,null,null,466,"VAV","TU",1,9,50,null,null,"-"]
["VAV",null,null,null,467,"VAV","TU",1,9,50,null,null,"-"]
["VAV",null,null,null,468,"VAV","TU",1,9,50,null,null,"-"]
["VAV",null,null,null,469,"VAV","TU",1,9,50,null,null,"-"]
["VAV",null,null,null,470,"VAV","TU",1,9,50,null,null,"-"]
["VAV",null,null,null,471,"VAV","TU",1,9,50,null,null,"-"]
["VAV",null,null,null,472,"VAV","TU",1,9,50,null,null,"-"]
["VAV",null,null,null,473,"VAV","TU",1,9,50,null,null,"-"]
["VAV",null,null,null,474,"VAV","TU",1,9,50,null,null,"-"]
["VAV",null,null,null,475,"VAV","TU",1,9,50,null,null,"-"]
["VAV",null,null,null,476,"VAV","TU",1,9,50,null,null,"-"]
["VAV",null,null,null,477,"VAV","TU",1,9,50,null,null,"-"]
["VAV",null,null,null,478,"VAV","TU",1,9,50,null,null,"-"]
["VAV",null,null,null,479,"VAV","TU",1,9,50,null,null,"-"]
["VAV",null,null,null,480,"VAV","TU",1,9,50,null,null,"-"]
["VAV",null,null,null,481,"VAV","TU",1,9,50,null,null,"-"]
["VAV",null,null,null,482,"VAV","TU",1,9,50,null,null,"-"]
["VAV",null,null,null,483,"VAV","TU",1,9,50,null,null,"-"]
["VAV",null,null,null,484,"VAV","TU",1,9,50,null,null,"-"]
["VAV",null,null,null,485,"VAV","TU",1,9,50,null,null,"-"]
["VAV",null,null,null,486,"VAV","TU",1,9,50,null,null,"-"]
["VAV",null,null,null,487,"VAV","TU",1,9,50,null,null,"-"]
["VAV",null,null,null,488,"VAV","TU",1,9,50,null,null,"-"]
["VAV",null,null,null,489,"VAV","TU",1,9,50,null,null,"-"]
["VAV",null,null,null,490,"VAV","TU",1,9,50,null,null,"-"]
["VAV",null,null,null,491,"VAV","TU",1,9,50,null,null,"-"]
["VAV",null,null,null,492,"VAV","TU",1,9,50,null,null,"-"]
["VAV",null,null,null,493,"VAV","TU",1,9,50,null,null,"-"]
["VAV",null,null,null,494,"VAV","TU",1,9,50,null,null,"-"]
["VAV",null,null,null,495,"VAV","TU",1,9,50,null,null,"-"]
["VAV",null,null,null,496,"VAV","TU",1,9,50,null,null,"-"]
["VAV",null,null,null,497,"VAV","TU",1,9,50,null,null,"-"]
["VAV",null,null,null,498,"VAV","TU",1,9,50,null,null,"-"]
["VAV",null,null,null,499,"VAV","TU",1,9,50,null,null,"-"]
["VAV",null,null,null,500,"VAV","TU",1,9,50,null,null,"-"]
["VAV",null,null,null,501,"VAV","TU",1,9,50,null,null,"-"]
["VAV",null,null,null,502,"VAV","TU",1,9,50,null,null,"-"]
["VAV",null,null,null,503,"VAV","TU",1,9,50,null,null,"-"]
["VAV",null,null,null,504,"VAV","TU",1,9,50,null,null,"-"]
["VAV",null,null,null,505,"VAV","TU",1,9,50,null,null,"-"]
["VAV",null,null,null,506,"VAV","TU",1,9,50,null,null,"-"]
["VAV",null,null,null,507,"VAV","TU",1,9,50,null,null,"-"]
["VAV",null,null,null,508,"VAV","TU",1,9,50,null,null,"-"]
["VAV",null,null,null,509,"VAV","TU",1,9,50,null,null,"-"]
["VAV",null,null,null,510,"VAV","TU",1,9,50,null,null,"-"]
["VAV",null,null,null,511,"VAV","TU",1,9,50,null,null,"-"]
["VAV",null,null,null,512,"VAV","TU",1,9,50,null,null,"-"]
["VAV",null,null,null,513,{"$f":"IF(AND(B524=\"\",C524=\"\",D524=\"\"),A524,A524&IF(B524<>\"\",\"-\"&B524,\"\")&IF(C524<>\"\",\"-\"&C524,\"\")&IF(D524<>\"\",\"-\"&D524,\"\")&\"-\"&E524)","v":"VAV"},"TU",1,9,50,null,null,{"$f":"$I$7","v":"-"}]
["VAV",null,null,null,514,"VAV","TU",1,9,50,null,null,"-"]
["VAV",null,null,null,515,"VAV","TU",1,9,50,null,null,"-"]
["VAV",null,null,null,516,"VAV","TU",1,9,50,null,null,"-"]
["VAV",null,null,null,517,"VAV","TU",1,9,50,null,null,"-"]
["VAV",null,null,null,518,"VAV","TU",1,9,50,null,null,"-"]
["VAV",null,null,null,519,"VAV","TU",1,9,50,null,null,"-"]
["VAV",null,null,null,520,"VAV","TU",1,9,50,null,null,"-"]
["VAV",null,null,null,521,"VAV","TU",1,9,50,null,null,"-"]
["VAV",null,null,null,522,"VAV","TU",1,9,50,null,null,"-"]
["VAV",null,null,null,523,"VAV","TU",1,9,50,null,null,"-"]
["VAV",null,null,null,524,"VAV","TU",1,9,50,null,null,"-"]
["VAV",null,null,null,525,"VAV","TU",1,9,50,null,null,"-"]
["VAV",null,null,null,526,"VAV","TU",1,9,50,null,null,"-"]
["VAV",null,null,null,527,"VAV","TU",1,9,50,null,null,"-"]
["VAV",null,null,null,528,"VAV","TU",1,9,50,null,null,"-"]
["VAV",null,null,null,529,"VAV","TU",1,9,50,null,null,"-"]
["VAV",null,null,null,530,"VAV","TU",1,9,50,null,null,"-"]
["VAV",null,null,null,531,"VAV","TU",1,9,50,null,null,"-"]
["VAV",null,null,null,532,"VAV","TU",1,9,50,null,null,"-"]
["VAV",null,null,null,533,"VAV","TU",1,9,50,null,null,"-"]
["VAV",null,null,null,534,"VAV","TU",1,9,50,null,null,"-"]
["VAV",null,null,null,535,"VAV","TU",1,9,50,null,null,"-"]
["VAV",null,null,null,536,"VAV","TU",1,9,50,null,null,"-"]
["VAV",null,null,null,537,"VAV","TU",1,9,50,null,null,"-"]
["VAV",null,null,null,538,"VAV","TU",1,9,50,null,null,"-"]
["VAV",null,null,null,539,"VAV","TU",1,9,50,null,null,"-"]
["VAV",null,null,null,540,"VAV","TU",1,9,50,null,null,"-"]
["VAV",null,null,null,541,"VAV","TU",1,9,50,null,null,"-"]
["VAV",null,null,null,542,"VAV","TU",1,9,50,null,null,"-"]
["VAV",null,null,null,543,"VAV","TU",1,9,50,null,null,"-"]
["VAV",null,null,null,544,"VAV","TU",1,9,50,null,null,"-"]
["VAV",null,null,null,545,"VAV","TU",1,9,50,null,null,"-"]
["VAV",null,null,null,546,"VAV","TU",1,9,50,null,null,"-"]
["VAV",null,null,null,547,"VAV","TU",1,9,50,null,null,"-"]
["VAV",null,null,null,548,"VAV","TU",1,9,50,null,null,"-"]
["VAV",null,null,null,549,"VAV","TU",1,9,50,null,null,"-"]
["VAV",null,null,null,550,"VAV","TU",1,9,50,null,null,"-"]
["VAV",null,null,null,551,"VAV","TU",1,9,50,null,null,"-"]
["VAV",null,null,null,552,"VAV","TU",1,9,50,null,null,"-"]
["VAV",null,null,null,553,"VAV","TU",1,9,50,null,null,"-"]
["VAV",null,null,null,554,"VAV","TU",1,9,50,null,null,"-"]
["VAV",null,null,null,555,"VAV","TU",1,9,50,null,null,"-"]
["VAV",null,null,null,556,"VAV","TU",1,9,50,null,null,"-"]
["VAV",null,null,null,557,"VAV","TU",1,9,50,null,null,"-"]
["VAV",null,null,null,558,"VAV","TU",1,9,50,null,null,"-"]
["VAV",null,null,null,559,"VAV","TU",1,9,50,null,null,"-"]
["VAV",null,null,null,560,"VAV","TU",1,9,50,null,null,"-"]
["VAV",null,null,null,561,"VAV","TU",1,9,50,null,null,"-"]
["VAV",null,null,null,562,"VAV","TU",1,9,50,null,null,"-"]
["VAV",null,null,null,563,"VAV","TU",1,9,50,null,null,"-"]
["VAV",null,null,null,564,"VAV","TU",1,9,50,null,null,"-"]
["VAV",null,null,null,565,"VAV","TU",1,9,50,null,null,"-"]
["VAV",null,null,null,566,"VAV","TU",1,9,50,null,null,"-"]
["VAV",null,null,null,567,"VAV","TU",1,9,50,null,null,"-"]
["VAV",null,null,null,568,"VAV","TU",1,9,50,null,null,"-"]
["VAV",null,null,null,569,"VAV","TU",1,9,50,null,null,"-"]
["VAV",null,null,null,570,"VAV","TU",1,9,50,null,null,"-"]
["VAV",null,null,null,571,"VAV","TU",1,9,50,null,null,"-"]
["VAV",null,null,null,572,"VAV","TU",1,9,50,null,null,"-"]
["VAV",null,null,null,573,"VAV","TU",1,9,50,null,null,"-"]
["VAV",null,null,null,574,"VAV","TU",1,9,50,null,null,"-"]
["VAV",null,null,null,575,"VAV","TU",1,9,50,null,null,"-"]
["VAV",null,null,null,576,"VAV","TU",1,9,50,null,null,"-"]
["VAV",null,null,null,577,{"$f":"IF(AND(B588=\"\",C588=\"\",D588=\"\"),A588,A588&IF(B588<>\"\",\"-\"&B588,\"\")&IF(C588<>\"\",\"-\"&C588,\"\")&IF(D588<>\"\",\"-\"&D588,\"\")&\"-\"&E588)","v":"VAV"},"TU",1,9,50,null,null,{"$f":"$I$7","v":"-"}]
["VAV",null,null,null,578,"VAV","TU",1,9,50,null,null,"-"]
["VAV",null,null,null,579,"VAV","TU",1,9,50,null,null,"-"]
["VAV",null,null,null,580,"VAV","TU",1,9,50,null,null,"-"]
["VAV",null,null,null,581,"VAV","TU",1,9,50,null,null,"-"]
["VAV",null,null,null,582,"VAV","TU",1,9,50,null,null,"-"]
["VAV",null,null,null,583,"VAV","TU",1,9,50,null,null,"-"]
["VAV",null,null,null,584,"VAV","TU",1,9,50,null,null,"-"]
["VAV",null,null,null,585,"VAV","TU",1,9,50,null,null,"-"]
["VAV",null,null,null,586,"VAV","TU",1,9,50,null,null,"-"]
["VAV",null,null,null,587,"VAV","TU",1,9,50,null,null,"-"]
["VAV",null,null,null,588,"VAV","TU",1,9,50,null,null,"-"]
["VAV",null,null,null,589,"VAV","TU",1,9,50,null,null,"-"]
["VAV",null,null,null,590,"VAV","TU",1,9,50,null,null,"-"]
["VAV",null,null,null,591,"VAV","TU",1,9,50,null,null,"-"]
["VAV",null,null,null,592,"VAV","TU",1,9,50,null,null,"-"]
["VAV",null,null,null,593,"VAV","TU",1,9,50,null,null,"-"]
["VAV",null,null,null,594,"VAV","TU",1,9,50,null,null,"-"]
["VAV",null,null,null,595,"VAV","TU",1,9,50,null,null,"-"]
["VAV",null,null,null,596,"VAV","TU",1,9,50,null,null,"-"]
["VAV",null,null,null,597,"VAV","TU",1,9,50,null,null,"-"]
["VAV",null,null,null,598,"VAV","TU",1,9,50,null,null,"-"]
["VAV",null,null,null,599,"VAV","TU",1,9,50,null,null,"-"]
["VAV",null,null,null,600,"VAV","TU",1,9,50,null,null,"-"]
["VAV",null,null,null,601,"VAV","TU",1,9,50,null,null,"-"]
["VAV",null,null,null,602,"VAV","TU",1,9,50,null,null,"-"]
["VAV",null,null,null,603,"VAV","TU",1,9,50,null,null,"-"]
["VAV",null,null,null,604,"VAV","TU",1,9,50,null,null,"-"]
["VAV",null,null,null,605,"VAV","TU",1,9,50,null,null,"-"]
["VAV",null,null,null,606,"VAV","TU",1,9,50,null,null,"-"]
["VAV",null,null,null,607,"VAV","TU",1,9,50,null,null,"-"]
["VAV",null,null,null,608,"VAV","TU",1,9,50,null,null,"-"]
["VAV",null,null,null,609,"VAV","TU",1,9,50,null,null,"-"]
["VAV",null,null,null,610,"VAV","TU",1,9,50,null,null,"-"]
["VAV",null,null,null,611,"VAV","TU",1,9,50,null,null,"-"]
["VAV",null,null,null,612,"VAV","TU",1,9,50,null,null,"-"]
["VAV",null,null,null,613,"VAV","TU",1,9,50,null,null,"-"]
["VAV",null,null,null,614,"VAV","TU",1,9,50,null,null,"-"]
["VAV",null,null,null,615,"VAV","TU",1,9,50,null,null,"-"]
["VAV",null,null,null,616,"VAV","TU",1,9,50,null,null,"-"]
["VAV",null,null,null,617,"VAV","TU",1,9,50,null,null,"-"]
["VAV",null,null,null,618,"VAV","TU",1,9,50,null,null,"-"]
["VAV",null,null,null,619,"VAV","TU",1,9,50,null,null,"-"]
["VAV",null,null,null,620,"VAV","TU",1,9,50,null,null,"-"]
["VAV",null,null,null,621,"VAV","TU",1,9,50,null,null,"-"]
["VAV",null,null,null,622,"VAV","TU",1,9,50,null,null,"-"]
["VAV",null,null,null,623,"VAV","TU",1,9,50,null,null,"-"]
["VAV",null,null,null,624,"VAV","TU",1,9,50,null,null,"-"]
["VAV",null,null,null,625,"VAV","TU",1,9,50,null,null,"-"]
["VAV",null,null,null,626,"VAV","TU",1,9,50,null,null,"-"]
["VAV",null,null,null,627,"VAV","TU",1,9,50,null,null,"-"]
["VAV",null,null,null,628,"VAV","TU",1,9,50,null,null,"-"]
["VAV",null,null,null,629,"VAV","TU",1,9,50,null,null,"-"]
["VAV",null,null,null,630,"VAV","TU",1,9,50,null,null,"-"]
["VAV",null,null,null,631,"VAV","TU",1,9,50,null,null,"-"]
["VAV",null,null,null,632,"VAV","TU",1,9,50,null,null,"-"]
["VAV",null,null,null,633,"VAV","TU",1,9,50,null,null,"-"]
["VAV",null,null,null,634,"VAV","TU",1,9,50,null,null,"-"]
["VAV",null,null,null,635,"VAV","TU",1,9,50,null,null,"-"]
["VAV",null,null,null,636,"VAV","TU",1,9,50,null,null,"-"]
["VAV",null,null,null,637,"VAV","TU",1,9,50,null,null,"-"]
["VAV",null,null,null,638,"VAV","TU",1,9,50,null,null,"-"]
["VAV",null,null,null,639,"VAV","TU",1,9,50,null,null,"-"]
["VAV",null,null,null,640,"VAV","TU",1,9,50,null,null,"-"]
["VAV",null,null,null,641,{"$f":"IF(AND(B652=\"\",C652=\"\",D652=\"\"),A652,A652&IF(B652<>\"\",\"-\"&B652,\"\")&IF(C652<>\"\",\"-\"&C652,\"\")&IF(D652<>\"\",\"-\"&D652,\"\")&\"-\"&E652)","v":"VAV"},"TU",1,9,50,null,null,{"$f":"$I$7","v":"-"}]
["VAV",null,null,null,642,"VAV","TU",1,9,50,null,null,"-"]
["VAV",null,null,null,643,"VAV","TU",1,9,50,null,null,"-"]
["VAV",null,null,null,644,"VAV","TU",1,9,50,null,null,"-"]
["VAV",null,null,null,645,"VAV","TU",1,9,50,null,null,"-"]
["VAV",null,null,null,646,"VAV","TU",1,9,50,null,null,"-"]
["VAV",null,null,null,647,"VAV","TU",1,9,50,null,null,"-"]
["VAV",null,null,null,648,"VAV","TU",1,9,50,null,null,"-"]
["VAV",null,null,null,649,"VAV","TU",1,9,50,null,null,"-"]
["VAV",null,null,null,650,"VAV","TU",1,9,50,null,null,"-"]
["VAV",null,null,null,651,"VAV","TU",1,9,50,null,null,"-"]
["VAV",null,null,null,652,"VAV","TU",1,9,50,null,null,"-"]
["VAV",null,null,null,653,"VAV","TU",1,9,50,null,null,"-"]
["VAV",null,null,null,654,"VAV","TU",1,9,50,null,null,"-"]
["VAV",null,null,null,655,"VAV","TU",1,9,50,null,null,"-"]
["VAV",null,null,null,656,"VAV","TU",1,9,50,null,null,"-"]
["VAV",null,null,null,657,"VAV","TU",1,9,50,null,null,"-"]
["VAV",null,null,null,658,"VAV","TU",1,9,50,null,null,"-"]
["VAV",null,null,null,659,"VAV","TU",1,9,50,null,null,"-"]
["VAV",null,null,null,660,"VAV","TU",1,9,50,null,null,"-"]
["VAV",null,null,null,661,"VAV","TU",1,9,50,null,null,"-"]
["VAV",null,null,null,662,"VAV","TU",1,9,50,null,null,"-"]
["VAV",null,null,null,663,"VAV","TU",1,9,50,null,null,"-"]
["VAV",null,null,null,664,"VAV","TU",1,9,50,null,null,"-"]
["VAV",null,null,null,665,"VAV","TU",1,9,50,null,null,"-"]
["VAV",null,null,null,666,"VAV","TU",1,9,50,null,null,"-"]
["VAV",null,null,null,667,"VAV","TU",1,9,50,null,null,"-"]
["VAV",null,null,null,668,"VAV","TU",1,9,50,null,null,"-"]
["VAV",null,null,null,669,"VAV","TU",1,9,50,null,null,"-"]
["VAV",null,null,null,670,"VAV","TU",1,9,50,null,null,"-"]
["VAV",null,null,null,671,"VAV","TU",1,9,50,null,null,"-"]
["VAV",null,null,null,672,"VAV","TU",1,9,50,null,null,"-"]
["VAV",null,null,null,673,"VAV","TU",1,9,50,null,null,"-"]
["VAV",null,null,null,674,"VAV","TU",1,9,50,null,null,"-"]
["VAV",null,null,null,675,"VAV","TU",1,9,50,null,null,"-"]
["VAV",null,null,null,676,"VAV","TU",1,9,50,null,null,"-"]
["VAV",null,null,null,677,"VAV","TU",1,9,50,null,null,"-"]
["VAV",null,null,null,678,"VAV","TU",1,9,50,null,null,"-"]
["VAV",null,null,null,679,"VAV","TU",1,9,50,null,null,"-"]
["VAV",null,null,null,680,"VAV","TU",1,9,50,null,null,"-"]
["VAV",null,null,null,681,"VAV","TU",1,9,50,null,null,"-"]
["VAV",null,null,null,682,"VAV","TU",1,9,50,null,null,"-"]
["VAV",null,null,null,683,"VAV","TU",1,9,50,null,null,"-"]
["VAV",null,null,null,684,"VAV","TU",1,9,50,null,null,"-"]
["VAV",null,null,null,685,"VAV","TU",1,9,50,null,null,"-"]
["VAV",null,null,null,686,"VAV","TU",1,9,50,null,null,"-"]
["VAV",null,null,null,687,"VAV","TU",1,9,50,null,null,"-"]
["VAV",null,null,null,688,"VAV","TU",1,9,50,null,null,"-"]
["VAV",null,null,null,689,"VAV","TU",1,9,50,null,null,"-"]
["VAV",null,null,null,690,"VAV","TU",1,9,50,null,null,"-"]
["VAV",null,null,null,691,"VAV","TU",1,9,50,null,null,"-"]
["VAV",null,null,null,692,"VAV","TU",1,9,50,null,null,"-"]
["VAV",null,null,null,693,"VAV","TU",1,9,50,null,null,"-"]
["VAV",null,null,null,694,"VAV","TU",1,9,50,null,null,"-"]
["VAV",null,null,null,695,"VAV","TU",1,9,50,null,null,"-"]
["VAV",null,null,null,696,"VAV","TU",1,9,50,null,null,"-"]
["VAV",null,null,null,697,"VAV","TU",1,9,50,null,null,"-"]
["VAV",null,null,null,698,"VAV","TU",1,9,50,null,null,"-"]
["VAV",null,null,null,699,"VAV","TU",1,9,50,null,null,"-"]
["VAV",null,null,null,700,"VAV","TU",1,9,50,null,null,"-"]
["VAV",null,null,null,701,"VAV","TU",1,9,50,null,null,"-"]
["VAV",null,null,null,702,"VAV","TU",1,9,50,null,null,"-"]
["VAV",null,null,null,703,"VAV","TU",1,9,50,null,null,"-"]
["VAV",null,null,null,704,"VAV","TU",1,9,50,null,null,"-"]
["VAV",null,null,null,705,{"$f":"IF(AND(B716=\"\",C716=\"\",D716=\"\"),A716,A716&IF(B716<>\"\",\"-\"&B716,\"\")&IF(C716<>\"\",\"-\"&C716,\"\")&IF(D716<>\"\",\"-\"&D716,\"\")&\"-\"&E716)","v":"VAV"},"TU",1,9,50,null,null,{"$f":"$I$7","v":"-"}]
["VAV",null,null,null,706,"VAV","TU",1,9,50,null,null,"-"]
["VAV",null,null,null,707,"VAV","TU",1,9,50,null,null,"-"]
["VAV",null,null,null,708,"VAV","TU",1,9,50,null,null,"-"]
["VAV",null,null,null,709,"VAV","TU",1,9,50,null,null,"-"]
["VAV",null,null,null,710,"VAV","TU",1,9,50,null,null,"-"]
["VAV",null,null,null,711,"VAV","TU",1,9,50,null,null,"-"]
["VAV",null,null,null,712,"VAV","TU",1,9,50,null,null,"-"]
["VAV",null,null,null,713,"VAV","TU",1,9,50,null,null,"-"]
["VAV",null,null,null,714,"VAV","TU",1,9,50,null,null,"-"]
["VAV",null,null,null,715,"VAV","TU",1,9,50,null,null,"-"]
["VAV",null,null,null,716,"VAV","TU",1,9,50,null,null,"-"]
["VAV",null,null,null,717,"VAV","TU",1,9,50,null,null,"-"]
["VAV",null,null,null,718,"VAV","TU",1,9,50,null,null,"-"]
["VAV",null,null,null,719,"VAV","TU",1,9,50,null,null,"-"]
["VAV",null,null,null,720,"VAV","TU",1,9,50,null,null,"-"]
["VAV",null,null,null,721,"VAV","TU",1,9,50,null,null,"-"]
["VAV",null,null,null,722,"VAV","TU",1,9,50,null,null,"-"]
["VAV",null,null,null,723,"VAV","TU",1,9,50,null,null,"-"]
["VAV",null,null,null,724,"VAV","TU",1,9,50,null,null,"-"]
["VAV",null,null,null,725,"VAV","TU",1,9,50,null,null,"-"]
["VAV",null,null,null,726,"VAV","TU",1,9,50,null,null,"-"]
["VAV",null,null,null,727,"VAV","TU",1,9,50,null,null,"-"]
["VAV",null,null,null,728,"VAV","TU",1,9,50,null,null,"-"]
["VAV",null,null,null,729,"VAV","TU",1,9,50,null,null,"-"]
["VAV",null,null,null,730,"VAV","TU",1,9,50,null,null,"-"]
["VAV",null,null,null,731,"VAV","TU",1,9,50,null,null,"-"]
["VAV",null,null,null,732,"VAV","TU",1,9,50,null,null,"-"]
["VAV",null,null,null,733,"VAV","TU",1,9,50,null,null,"-"]
["VAV",null,null,null,734,"VAV","TU",1,9,50,null,null,"-"]
["VAV",null,null,null,735,"VAV","TU",1,9,50,null,null,"-"]
["VAV",null,null,null,736,"VAV","TU",1,9,50,null,null,"-"]
["VAV",null,null,null,737,"VAV","TU",1,9,50,null,null,"-"]
["VAV",null,null,null,738,"VAV","TU",1,9,50,null,null,"-"]
["VAV",null,null,null,739,"VAV","TU",1,9,50,null,null,"-"]
["VAV",null,null,null,740,"VAV","TU",1,9,50,null,null,"-"]
["VAV",null,null,null,741,"VAV","TU",1,9,50,null,null,"-"]
["VAV",null,null,null,742,"VAV","TU",1,9,50,null,null,"-"]
["VAV",null,null,null,743,"VAV","TU",1,9,50,null,null,"-"]
["VAV",null,null,null,744,"VAV","TU",1,9,50,null,null,"-"]
["VAV",null,null,null,745,"VAV","TU",1,9,50,null,null,"-"]
["VAV",null,null,null,746,"VAV","TU",1,9,50,null,null,"-"]
["VAV",null,null,null,747,"VAV","TU",1,9,50,null,null,"-"]
["VAV",null,null,null,748,"VAV","TU",1,9,50,null,null,"-"]
["VAV",null,null,null,749,"VAV","TU",1,9,50,null,null,"-"]
["VAV",null,null,null,750,"VAV","TU",1,9,50,null,null,"-"]
["VAV",null,null,null,751,"VAV","TU",1,9,50,null,null,"-"]
["VAV",null,null,null,752,"VAV","TU",1,9,50,null,null,"-"]
["VAV",null,null,null,753,"VAV","TU",1,9,50,null,null,"-"]
["VAV",null,null,null,754,"VAV","TU",1,9,50,null,null,"-"]
["VAV",null,null,null,755,"VAV","TU",1,9,50,null,null,"-"]
["VAV",null,null,null,756,"VAV","TU",1,9,50,null,null,"-"]
["VAV",null,null,null,757,"VAV","TU",1,9,50,null,null,"-"]
["VAV",null,null,null,758,"VAV","TU",1,9,50,null,null,"-"]
["VAV",null,null,null,759,"VAV","TU",1,9,50,null,null,"-"]
["VAV",null,null,null,760,"VAV","TU",1,9,50,null,null,"-"]
["VAV",null,null,null,761,"VAV","TU",1,9,50,null,null,"-"]
["VAV",null,null,null,762,"VAV","TU",1,9,50,null,null,"-"]
["VAV",null,null,null,763,"VAV","TU",1,9,50,null,null,"-"]
["VAV",null,null,null,764,"VAV","TU",1,9,50,null,null,"-"]
["VAV",null,null,null,765,"VAV","TU",1,9,50,null,null,"-"]
["VAV",null,null,null,766,"VAV","TU",1,9,50,null,null,"-"]
["VAV",null,null,null,767,"VAV","TU",1,9,50,null,null,"-"]
["VAV",null,null,null,768,"VAV","TU",1,9,50,null,null,"-"]
["VAV",null,null,null,769,{"$f":"IF(AND(B780=\"\",C780=\"\",D780=\"\"),A780,A780&IF(B780<>\"\",\"-\"&B780,\"\")&IF(C780<>\"\",\"-\"&C780,\"\")&IF(D780<>\"\",\"-\"&D780,\"\")&\"-\"&E780)","v":"VAV"},"TU",1,9,50,null,null,{"$f":"$I$7","v":"-"}]
["VAV",null,null,null,770,"VAV","TU",1,9,50,null,null,"-"]
["VAV",null,null,null,771,"VAV","TU",1,9,50,null,null,"-"]
["VAV",null,null,null,772,"VAV","TU",1,9,50,null,null,"-"]
["VAV",null,null,null,773,"VAV","TU",1,9,50,null,null,"-"]
["VAV",null,null,null,774,"VAV","TU",1,9,50,null,null,"-"]
["VAV",null,null,null,775,"VAV","TU",1,9,50,null,null,"-"]
["VAV",null,null,null,776,"VAV","TU",1,9,50,null,null,"-"]
["VAV",null,null,null,777,"VAV","TU",1,9,50,null,null,"-"]
["VAV",null,null,null,778,"VAV","TU",1,9,50,null,null,"-"]
["VAV",null,null,null,779,"VAV","TU",1,9,50,null,null,"-"]
["VAV",null,null,null,780,"VAV","TU",1,9,50,null,null,"-"]
["VAV",null,null,null,781,"VAV","TU",1,9,50,null,null,"-"]
["VAV",null,null,null,782,"VAV","TU",1,9,50,null,null,"-"]
["VAV",null,null,null,783,"VAV","TU",1,9,50,null,null,"-"]
["VAV",null,null,null,784,"VAV","TU",1,9,50,null,null,"-"]
["VAV",null,null,null,785,"VAV","TU",1,9,50,null,null,"-"]
["VAV",null,null,null,786,"VAV","TU",1,9,50,null,null,"-"]
["VAV",null,null,null,787,"VAV","TU",1,9,50,null,null,"-"]
["VAV",null,null,null,788,"VAV","TU",1,9,50,null,null,"-"]
["VAV",null,null,null,789,"VAV","TU",1,9,50,null,null,"-"]
["VAV",null,null,null,790,"VAV","TU",1,9,50,null,null,"-"]
["VAV",null,null,null,791,"VAV","TU",1,9,50,null,null,"-"]
["VAV",null,null,null,792,"VAV","TU",1,9,50,null,null,"-"]
["VAV",null,null,null,793,"VAV","TU",1,9,50,null,null,"-"]
["VAV",null,null,null,794,"VAV","TU",1,9,50,null,null,"-"]
["VAV",null,null,null,795,"VAV","TU",1,9,50,null,null,"-"]
["VAV",null,null,null,796,"VAV","TU",1,9,50,null,null,"-"]
["VAV",null,null,null,797,"VAV","TU",1,9,50,null,null,"-"]
["VAV",null,null,null,798,"VAV","TU",1,9,50,null,null,"-"]
["VAV",null,null,null,799,"VAV","TU",1,9,50,null,null,"-"]
["VAV",null,null,null,800,"VAV","TU",1,9,50,null,null,"-"]

{"sheet":"Instructions","index":1,"n_rows":9,"n_cols":2,"rows_kept":9,"cut":false,"hidden":false,"merged":[[0,0,0,5]]}
["VAV Selection Scheduler - Excel Template Instructions"]
[]
["1. Complete project data","Enter Project Name, Consultant, Contractor, Job Ref and Shapeair Ref."]
["2. Set base selection","Select VAV Model (TU or TUD), Max Inlet Velocity (4-12 m/s), VAV Turn Down (0-80%) and Re-heat (-, EDH or HHW). These values are applied as defaults to the schedule rows."]
["3. Complete schedule inputs","Input 1 is prefilled with VAV. Enter Input 2, Input 3 and Input 4 as required. Ref is generated automatically. VAV Terminal is formed automatically as Input1-Input2-Input3-Input4-Ref. Enter Quantity and Airflow Max, then confirm the row-specific model, velocity, turn-down and reheat values."]
["4. Input limits","Airflow Max: 26-2000 l/s. Inlet Velocity: 4-12 m/s. VAV Turn Down: 0-80%. Quantity must be a positive integer. Reheat System must be -, EDH or HHW."]
["5. Calculate schedule","Save the completed workbook in .xlsm format, upload it using Select File, and click Calculate Schedule. Wait for the calculation to complete. The system will automatically generate and download the VAV Schedule as a PDF document."]
["6. Generated PDF","The generated PDF contains the project data, VAV terminal schedule, quantities, airflow values, selected TU/TUD models, order codes, dimensions, pressure and noise results, and applicable EDH or HHW reheat data."]
["7. Important","Use the original template structure. Do not rename worksheets, columns or headers, delete formulas, move columns, overwrite calculated fields or use values outside the dropdown lists. Rows without a valid Airflow Max value are not calculated."]